Workbook

Sheet Readme
B3: Excel kursus
B5: Her er så nummer to fil af de filer jeg for mange år siden brugte til Excel-under-
B6: visning af primært kollegaer.
B8: Filen hedder Logiske_Funktioner og omhandler primært funktionerne der hedder:
B10: Dansk | C10: Engelsk
B11: HVIS | C11: IF
B12: ELLER | C12: OR
B13: OG | C13: AND
B14: IKKE | C14: NOT
B16: herunder en del om den disciplin der hedder Boolesk Algebra. Enkelte steder er
B17: der dog også gjort brug af andre funktioner blandt andet HELTAL/INT og REST/MOD.
B18: Filen indeholder også en del eksempler på betinget formatering, men i øvrigt,
B19: meget mere herom i næste fil.
B20: Hvis du ikke umiddelbart kender en given funktion, så studer Excels hjælp til
B21: funktionen.
B23: I arket Opgaver er der en række eksempler på brug af de logiske funktioner. Her,
B24: som i flere af de andre ark, er der lagt op til, at du selv forsøger dig, men samtidig
B25: har jeg givet mulighed for at få hjælp, hvis du sætter et x i relevant celle.
B27: Arkene Procentregning og Lommeregner er mest for sjov. De har næppe den store
B28: praktiske relevans.
B30: Arket ABC_analyse indeholder et formentligt nogenlunde praktisk relevant eksempel
B31: på, hvad man kan anvende Excel til inden for virksomhedsøkonomi.
B33: Hvis der er fejl i materialet eller hvis du i øvrigt har kommentarer eller spørgsmål til
B34: filen er du meget velkommen til at skrive. Min mailadresse er:
B35: hans.knudsen@mail.tele.dk
B36: Enhver reaktion er velkommen. Slet ingen reaktion er fra mit ståsted noget af det
B37: mest demotiverende. Hvis der er helt andre Excel-ting du hellere vil se/høre/lære
B38: noget om, så sig frem.

Sheet HVIS
B2: HVIS
B4: Funktionen HVIS returnerer én værdi hvis en betingelse du specificerer er opfyldt (= SAND)
B5: og en anden værdi, hvis betingelsen ikke er opfyldt (= FALSK).
B7: Syntaks
B8: HVIS(Logisk_test; Værdi_hvis_sand; Værdi_hvis_falsk)
B10: HVIS funktionen har tre argumenter. Et argument er det der i parentesen adskilles af semi-
B11: kolon. Første argument er en logisk test, det vil sige et udsagn som enten kan være opfyldt
B12: eller ikke opfyldt – SAND eller FALSK. Det andet argument er den værdi som HVIS funktionen
B13: returnerer, hvis den logiske test er SAND. Det tredie argument er den værdi HVIS funktionen
B14: returnerer, hvis den logiske test er FALSK.
B17: Eksempel 1
C19: =CHAR(COLUMN()+64) -> C | D19: =CHAR(COLUMN()+64) -> D | E19: =CHAR(COLUMN()+64) -> E
E20: Er tallet i
E21: kolonne D
C22: Første | D22: Andet | E22: > end tallet
C23: tal | D23: tal | E23: i kolonne E
B24: =ROW() -> 24 | C24: 32 | D24: 32 | G24: ="Lav en formel (logisk test) i "&mycell(E24)&" der retur-" -> Lav en formel (logisk test) i E24 der retur- | L24: =C24>D24 -> FALSE
B25: =ROW() -> 25 | C25: 90 | D25: 15 | G25: ="nerer SAND hvis tallet i "&mycell(C24)&" er større" -> nerer SAND hvis tallet i C24 er større | L25: =C25>D25 -> TRUE
B26: =ROW() -> 26 | C26: 25 | D26: 84 | G26: ="end (>) tallet i "&mycell(D24)&" og ellers returnerer ." -> end (>) tallet i D24 og ellers returnerer . | L26: FALSE
B27: =ROW() -> 27 | C27: 20 | D27: 52 | G27: FALSK. | L27: FALSE
B28: =ROW() -> 28 | C28: 1 | D28: 38 | G28: ="Med celle "&ADDRESS(ROW(E24),COLUMN(E24),4)&" aktiveret, dobbeltklik på det" -> Med celle E24 aktiveret, dobbeltklik på det | L28: FALSE
B29: =ROW() -> 29 | C29: 18 | D29: 4 | G29: lille kvadrat i nederste højre hjørne af cellen | L29: TRUE
B30: =ROW() -> 30 | C30: 81 | D30: 79 | G30: for at kopiere formlen nedad. | L30: TRUE
B33: Sæt x hvis du ønsker hjælp
B38: Eksempel 2
C40: =CHAR(COLUMN()+64) -> C | D40: =CHAR(COLUMN()+64) -> D | E40: =CHAR(COLUMN()+64) -> E
E41: Er tallet i
E42: kolonne D
C43: Første | D43: Andet | E43: > end tallet
C44: tal | D44: tal | E44: i kolonne E
B45: =ROW() -> 45 | C45: 26 | D45: 43 | G45: ="Lav en HVIS formel i celle "&ADDRESS(ROW(E45),COLUMN(E45),4)&" der returner" -> Lav en HVIS formel i celle E45 der returner | L45: =IF(C45>D45,"JA","NEJ") -> NEJ
B46: =ROW() -> 46 | C46: 63 | D46: 31 | G46: ="""JA"" hvis tallet i "&mycell(C45)&" er større end" -> "JA" hvis tallet i C45 er større end | L46: =IF(C46>D46,"JA","NEJ") -> JA
B47: =ROW() -> 47 | C47: 90 | D47: 41 | G47: ="tallet i "&mycell(D45)&" og ellers returnerer ""NEJ""." -> tallet i D45 og ellers returnerer "NEJ". | L47: JA
B48: =ROW() -> 48 | C48: 5 | D48: 19 | G48: ="Med celle "&ADDRESS(ROW(E45),COLUMN(E45),4)&" aktiveret, dobbeltklik det" -> Med celle E45 aktiveret, dobbeltklik det | L48: NEJ
B49: =ROW() -> 49 | C49: 68 | D49: 3 | G49: lille kvadrat i nederste højre hjørne af | L49: JA
B50: =ROW() -> 50 | C50: 85 | D50: 59 | G50: cellen for at kopiere formlen ned til | L50: JA
B51: =ROW() -> 51 | C51: 7 | D51: 12 | G51: ="og med celle "&mycell(E53)&"." -> og med celle E53. | L51: NEJ
B54: Sæt x hvis du ønsker hjælp
B58: I stedet for JA og NEJ er der en række andre muligheder. Prøv (nedenfor) at indtaste følgende:
B60: ="I celle "&mycell(E73)&":" -> I celle E73: | D60: ="=HVIS("&mycell(C73)&" > "&mycell(D73)&"; 1; 2)" -> =HVIS(C73 > D73; 1; 2)
B62: ="I celle "&mycell(E74)&":" -> I celle E74: | D62: ="=HVIS("&mycell(C74)&" > "&mycell(D74)&"; ""JA""; """")" -> =HVIS(C74 > D74; "JA"; "")
B64: ="I celle "&mycell(E75)&":" -> I celle E75: | D64: ="=HVIS("&mycell(C75)&" < "&mycell(D75)&"; ""Ring til 3420""; ""Lønforhøjelse til den herre"")" -> =HVIS(C75 < D75; "Ring til 3420"; "Lønforhøjelse til den herre")
B66: ="I celle "&mycell(E76)&":" -> I celle E76: | D66: ="=HVIS("&mycell(C76)&" > "&mycell(D76)&"; ""Kontakt sælger nn""; "&mycell(D76)&"*10%)" -> =HVIS(C76 > D76; "Kontakt sælger nn"; D76*10%)
C70: =CHAR(COLUMN()+64) -> C | D70: D | E70: E
C71: Første | D71: Andet
C72: tal | D72: tal
B73: =ROW() -> 73 | C73: 3 | D73: 5 | H73: =IF(C73>D73,1,2) -> 2
B74: =ROW() -> 74 | C74: 11 | D74: 7 | H74: =IF(C74>D74,"JA","") -> JA
B75: =ROW() -> 75 | C75: 1213548 | D75: 1000000 | H75: =IF(C75<D75,"Ring til 3420","Lønforhøjelse til den herre") -> Lønforhøjelse til den herre
B76: =ROW() -> 76 | C76: 26489 | D76: 23698 | H76: =IF(C76>D76,"Kontakt sælger nn",D76*10%) -> Kontakt sælger nn
B79: Sæt x hvis du ønsker hjælp
B84: Eksempel 3
B86: Færdiggør salgsnotaen herunder ved at indsætte relevante formler i de gule celler. Brug en
B87: HVIS funktion til at beregne eventuel rabat. Moms beregnes som 25% af samlet pris minus
B88: rabat.
B90: Salgsnota Tæppelageret ApS – tæpper efter mål | K90: Hjælpe-
G91: ="Der ydes "&TEXT(K92,"0%")&" rabat ved køb over:" -> Der ydes 15% rabat ved køb over: | H91: =K93 -> 9500 | K91: celler
E92: Dimension i meter | G92: Areal | H92: Pris | I92: Samlet | K92: 0.15
B93: Betegnelse | E93: Bredde | F93: Længde | G93: i m2 | H93: pr. m2 | I93: pris | K93: 9500
B94: Dørmåtte lille | E94: 0.6 | F94: 1.2 | G94: =E94*F94 -> 0.72 | H94: 45.45 | I94: =G94*H94 -> 32.724
B95: Dørmåtte stor | E95: 1.3 | F95: 1.8 | G95: =E95*F95 -> 2.34 | H95: 70 | I95: =G95*H95 -> 163.8 | K95: ="Se formlen i celle "&mycell(G91)&"." -> Se formlen i celle G91.
B96: Løber lille | E96: 0.8 | F96: 2 | G96: 1.6 | H96: 68.5 | I96: 109.6
B97: Løber stor | E97: 1.4 | F97: 4 | G97: 5.6 | H97: 65 | I97: 364
B98: Lille tæppe | E98: 3.5 | F98: 4.5 | G98: 15.75 | H98: 75 | I98: 1181.25
B99: Stort tæppe | E99: 5.7 | F99: 6.5 | G99: 37.05 | H99: 85 | I99: 3149.25
B100: Aflangt tæppe | E100: 3.5 | F100: 4 | G100: 14 | H100: 68.5 | I100: 959
B101: Lille kvadr. tæppe | E101: 4 | F101: 4 | G101: 16 | H101: 85 | I101: 1360
B102: Stort kvadr. tæppe | E102: 6.6 | F102: 6.5 | G102: 42.9 | H102: 85 | I102: 3646.5
K103: Alternativt
H104: Samlet pris | I104: =SUM(I94:I102) -> 10966.124 | K104: =SUM(I94:I102) -> 10966.124
E105: Hvis funktion her | H105: Rabat | I105: =IF(I104>H91,K92*I104,0) -> 1644.9186 | K105: =-IF(I104>H91,K92*I104,0) -> -1644.9186
H106: Moms | I106: =(I104-I105)*25% -> 2330.30135 | K106: =25%*(K104+K105) -> 2330.30135
H107: Pris i alt | I107: =I104-I105+I106 -> 11651.50675 | K107: =SUM(K104:K106) -> 11651.50675
I110: =_xlfn.FORMULATEXT(I107) -> =I104-I105+I106 | K110: =_xlfn.FORMULATEXT(K107) -> =SUM(K104:K106)
B114: Eksempel 4
C116: =CHAR(COLUMN()+64) -> C | D116: =CHAR(COLUMN()+64) -> D | E116: =CHAR(COLUMN()+64) -> E
B118: =ROW() -> 118 | D118: 100 | F118: Kritisk lagerniveau
B121: =ROW() -> 121 | C121: Nr. | D121: Antal | E121: Besked
B122: =ROW() -> 122 | C122: 136A | D122: 96 | F122: ="Aktiver celle "&mycell(E122)&" og lav en HVIS-funktion der skriver" -> Aktiver celle E122 og lav en HVIS-funktion der skriver | L122: =IF(D118>$D$122,"OK","Bestil") -> OK
B123: =ROW() -> 123 | C123: 584B | D123: 80 | F123: en meddelelse afhængig af lagerniveauet for hver | L123: =IF(D119>$D$122,"OK","Bestil") -> Bestil
B124: =ROW() -> 124 | C124: 239C | D124: 117 | F124: enkelt varenummer. | L124: Bestil
B125: =ROW() -> 125 | C125: 499D | D125: 118 | L125: OK
B126: =ROW() -> 126 | C126: 137E | D126: 95 | F126: ="Hvis antallet i celle "&mycell(D122)&" er større end eller lig med det " -> Hvis antallet i celle D122 er større end eller lig med det | L126: Bestil
B127: =ROW() -> 127 | C127: 187P | D127: 100 | F127: ="kritiske lagerniveau (= antallet i "&ADDRESS(ROW(D118),COLUMN(D118),4)&") skal HVIS funktionen" -> kritiske lagerniveau (= antallet i D118) skal HVIS funktionen | L127: Bestil
B128: =ROW() -> 128 | C128: 341S | D128: 84 | F128: returnere “OK”. I modsat fald skal den returnere | L128: OK
B129: =ROW() -> 129 | C129: 187R | D129: 105 | F129: “Bestil”. | L129: OK
B130: =ROW() -> 130 | C130: 234F | D130: 99 | L130: Bestil
B131: =ROW() -> 131 | C131: 546N | D131: 109 | L131: OK
B132: =ROW() -> 132 | C132: 473P | D132: 117 | L132: Bestil
B135: Sæt x hvis du ønsker hjælp
B139: Eksempel 5
C141: =CHAR(COLUMN()+64) -> C | D141: =CHAR(COLUMN()+64) -> D | E141: =CHAR(COLUMN()+64) -> E
B143: =ROW() -> 143 | D143: 100 | F143: Kritisk lagerniveau
B146: =ROW() -> 146 | C146: Nr. | D146: Antal | E146: Besked
B147: =ROW() -> 147 | C147: 136A | D147: 99 | F147: Her skal du gentage løsningen fra det foregående | L147: =IF(D147>$D$143*2,"Alarm",IF(D147>$D$143,"OK","Bestil")) -> Bestil
B148: =ROW() -> 148 | C148: 584B | D148: 86 | F148: eksempel, men med den tilføjelse, at hvis antal på lager | L148: =IF(D148>$D$143*2,"Alarm",IF(D148>$D$143,"OK","Bestil")) -> Bestil
B149: =ROW() -> 149 | C149: 239C | D149: 117 | F149: overstiger det kritiske lagerniveau med mere end 100% | L149: OK
B150: =ROW() -> 150 | C150: 499D | D150: 92 | F150: så skal HVIS funktionen returnere teksten "Alarm" og | L150: Bestil
B151: =ROW() -> 151 | C151: 137E | D151: 110 | F151: teksten skal være rød. | L151: OK
B152: =ROW() -> 152 | C152: 187P | D152: 300 | F152: Det skal altså stadigvæk være sådan, at hvis antallet er | L152: Alarm
B153: =ROW() -> 153 | C153: 341S | D153: 115 | F153: mindre end det kritiske niveau, skal HVIS-funktionen | L153: OK
B154: =ROW() -> 154 | C154: 187R | D154: 83 | F154: returnere teksten "Bestil", hvis antallet på lager er lig | L154: Bestil
B155: =ROW() -> 155 | C155: 234F | D155: 220 | F155: med eller større ned det kritiske niveau, men dog mindre | L155: Alarm
B156: =ROW() -> 156 | C156: 546N | D156: 87 | F156: end det kritiske niveau plus 100 procent, så skal HVIS- | L156: Bestil
B157: =ROW() -> 157 | C157: 473P | D157: 88 | F157: funktionen returnere meddelelsen "OK". | L157: Bestil
B158: =ROW() -> 158 | C158: 473P | D158: 118 | L158: OK
B161: Sæt x hvis du ønsker hjælp

Sheet BooleskAlgebra
B3: Boolesk algebra
B4: Boolsk algebra (og boolsk logik) er et komplet system til logiske operationer, baseret på algebra
B5: ="med variabler, som kun kan have to tilstande eller værdier, der normalt udtrykkes som "&TRUE -> med variabler, som kun kan have to tilstande eller værdier, der normalt udtrykkes som TRUE
B6: ="eller "&FALSE&". Boolsk algebra er opfundet og udviklet af den engelske matematiker og filosof" -> eller FALSE. Boolsk algebra er opfundet og udviklet af den engelske matematiker og filosof
B7: George Boole I 1850'erne.
B8: Algebraen anvendes eksempelvis i matematisk logik, i elektroniske kredsløb som for eksempel
B9: i processorer, og inden for datalogi, hvor den engelske stavemåde boolean anvendes om en
B10: datatype, der kun kan antage sandhedsværdier.
F15: George Boole (født 2. november 1815, død 8. december,
F16: 1864) var en engelsk filosof og matematiker, mest kendt
F17: for sin opfindelse og udvikling af Boolesk algebra.
F27: I slutningen af 1930’erne var der en ung, amerikansk
F28: ingeniørstuderende ved navn Claude Shannon (1916-2001),
F29: der stødte på Boole i et kursus i filosofi og fik den idé at
F30: overføre Booles system direkte til udviklingen af kom-
F31: plekse elektriske kredsløb. For et elektrisk kredsløb er
F32: altid enten tændt eller slukket – præcis som enhederne
F33: i Booles system også kun kan have to værdier: sand (1)
F34: eller falsk (0).
F35: I sin kandidatafhandling fra 1937 beskrev Shannon, hvordan
F36: man med boolesk algebra kunne forenkle telefon-
F37: omstillingen, som på det tidspunkt var det mest
F38: komplekse elektriske kredsløb, som man kendte til.
F39: Claude Shannons opdagelse blev senere taget op af
F40: blandt andre Alan Turing, som opfandt computeren.
B43: Grundlæggende operationer
AA46: Logisk operation | AC46: Operator | AD46: Logisk notation | AE46: Excel notation | AF46: Definition
AA47: Konjunktion | AC47: OG | AD47: xÙy | AE47: =OG (x,y) | AF47: xÙy=1 hvis x = y = 1, xÙy=0 i alle andre tilfælde.
AA48: Disjunktion | AC48: ELLER | AD48: xÚy | AE48: = ELLER(x,y) | AF48: xÚy=1 hvis x = y = 1, xÚy=0 i alle andre tilfælde.
AA49: Negation | AC49: IKKE | AD49: Ø x | AE49: = IKKE(x) | AF49: Ø x =0 if x = 1, Ø x = 1 hvis x = 0.
B52: Vi lægger forsigtigt ud.
C54: =CHAR(COLUMN()+64) -> C | D54: =CHAR(COLUMN()+64) -> D | E54: =CHAR(COLUMN()+64) -> E
B55: =ROW() -> 55
B56: =ROW() -> 56 | F56: Vi kan stille et meget enkelt spørgsmål. For eksem-
B57: =ROW() -> 57 | F57: ="pel, er tallet i celle "&mycell(C59)&" større end tallet i celle "&mycell(D59)&"?" -> pel, er tallet i celle C59 større end tallet i celle D59?
B58: =ROW() -> 58 | F58: ="Den nødvendige formel er indtastet i celle "&mycell(E59)&" og " -> Den nødvendige formel er indtastet i celle E59 og
B59: =ROW() -> 59 | C59: 15 | D59: 10 | E59: =C59>D59 -> TRUE | F59: ="svaret er "&TRUE&"." -> svaret er TRUE.
B60: =ROW() -> 60
B61: =ROW() -> 61
B62: =ROW() -> 62 | F62: Du kan konvertere henholdsvis SAND og FALSK til
B63: =ROW() -> 63 | F63: værdierne 1 og 0 ved at gange det logisk udtryk, altså
B64: =ROW() -> 64 | C64: 15 | D64: 10 | E64: =(C64>D64)*1 -> 1 | F64: ="SAND eller FALSK med 1. Se celle "&mycell(E64)&" der indeholder" -> SAND eller FALSK med 1. Se celle E64 der indeholder
B65: =ROW() -> 65 | F65: ="formlen: "&_xlfn.FORMULATEXT(E64)&"." -> formlen: =(C64>D64)*1.
B66: =ROW() -> 66 | F66: Det er dog ikke nødvendigt at konvertere et logisk ud-
B67: =ROW() -> 67 | F67: ="tryk til 1 eller 0. Se for eksempel celle "&mycell(E69)&" der inde-" -> tryk til 1 eller 0. Se for eksempel celle E69 der inde-
B68: =ROW() -> 68 | F68: holder følgende formel:
B69: =ROW() -> 69 | E69: =(C64 > D64)*1000 -> 1000 | F69: =_xlfn.FORMULATEXT(E69) -> =(C64 > D64)*1000
B70: =ROW() -> 70
B71: =ROW() -> 71
B72: =ROW() -> 72 | F72: Lad os sige, at vi ønsker at stille to spørgsmål. Er vær-
B73: =ROW() -> 73 | F73: ="dien i celle "&mycell(C80)&" større end værdien i celle "&mycell(D80)&" og" -> dien i celle C80 større end værdien i celle D80 og
B74: =ROW() -> 74 | F74: ="er værdien i celle "&mycell(C80)&" også mindre end 52." -> er værdien i celle C80 også mindre end 52.
B75: =ROW() -> 75
B76: =ROW() -> 76 | F76: ="Det første spørgsmål er stillet via formlen i celle "&mycell(E80) -> Det første spørgsmål er stillet via formlen i celle E80
B77: =ROW() -> 77 | F77: ="og det sidste spørgsmål via formlen i celle "&mycell(E81)&". I celle" -> og det sidste spørgsmål via formlen i celle E81. I celle
B78: =ROW() -> 78 | F78: =mycell(E82)&" er de to resultater ganget sammen." -> E82 er de to resultater ganget sammen.
B79: =ROW() -> 79
B80: =ROW() -> 80 | C80: 5 | D80: 10 | E80: =C80 > D80 -> FALSE | G80: =_xlfn.FORMULATEXT(E80) -> =C80 > D80
B81: =ROW() -> 81 | E81: =C80 < 52 -> TRUE | G81: =_xlfn.FORMULATEXT(E81) -> =C80 < 52
B82: =ROW() -> 82 | E82: =E80 * E81 -> 0 | G82: =_xlfn.FORMULATEXT(E82) -> =E80 * E81
B83: =ROW() -> 83
B84: =ROW() -> 84 | F84: Det følgende gælder:
B85: =ROW() -> 85
B86: =ROW() -> 86 | F86: Begge logiske udtryk = SAND.
B87: =ROW() -> 87 | F87: Begge logiske udtryk = FALSK.
B88: =ROW() -> 88 | F88: Første logiske udtryk = SAND og det andet logiske udtryk
B89: =ROW() -> 89 | F89: FALSK.
B90: =ROW() -> 90 | F90: Første logiske udtryk = FALSK og det andet logiske udtryk
B91: =ROW() -> 91 | F91: SAND.
B92: =ROW() -> 92 | F92: Altså for to udsagn X og Y har vi | I92: X | J92: Y
B93: =ROW() -> 93 | F93: følgende muligheder: | I93: =TRUE -> TRUE | J93: =TRUE -> TRUE
B94: =ROW() -> 94 | I94: =TRUE -> TRUE | J94: =FALSE -> FALSE
B95: =ROW() -> 95 | I95: =FALSE -> FALSE | J95: =TRUE -> TRUE
B96: =ROW() -> 96 | I96: =FALSE -> FALSE | J96: =FALSE -> FALSE
B97: =ROW() -> 97
B98: =ROW() -> 98 | F98: Vi gentager lige tabellen fra | I98: X | J98: Y
B99: =ROW() -> 99 | F99: ovenfor (se formlerne i | I99: =I93 -> TRUE | J99: =J93 -> TRUE
B100: =ROW() -> 100 | F100: =mycell(I99)&";"&mycell(J102)&"). Prøv nu at gange" -> I99;J102). Prøv nu at gange | I100: =I94 -> TRUE | J100: FALSE
B101: =ROW() -> 101 | F101: alle disse formler med 1, altså | I101: FALSE | J101: TRUE
B102: =ROW() -> 102 | F102: ="for eksempel: = "&mycell(I93)&" * 1" -> for eksempel: = I93 * 1 | I102: FALSE | J102: FALSE
B103: =ROW() -> 103
B104: =ROW() -> 104 | F104: Bemærk altså, at når SAND og FALSK indgår I regneopera-
B105: =ROW() -> 105 | F105: tioner så konverteres SAND til 1 og FALSK til 0.
B106: =ROW() -> 106
B107: =ROW() -> 107
B108: =ROW() -> 108 | F108: ="I celle "&mycell(E112)&" er indtastet en formel der stiller to spørgs-" -> I celle E112 er indtastet en formel der stiller to spørgs-
B109: =ROW() -> 109 | F109: mål og returnerer 1 eller 0 afhængig af begge spørgs-
B110: =ROW() -> 110 | F110: besvares med SAND.
B111: =ROW() -> 111
B112: =ROW() -> 112 | C112: 5 | D112: 10 | E112: =(C112 > D112)*(C112 < 52) -> 0 | F112: =_xlfn.FORMULATEXT(E112) -> =(C112 > D112)*(C112 < 52)
B113: =ROW() -> 113
B114: =ROW() -> 114 | F114: ="Prøv at ændre værdien i celle "&mycell(C112)&" til for eksempel" -> Prøv at ændre værdien i celle C112 til for eksempel
B115: =ROW() -> 115 | F115: ="15 og bemærk hvad der sker i celle "&mycell(E112)&"." -> 15 og bemærk hvad der sker i celle E112.
B116: =ROW() -> 116
B117: =ROW() -> 117 | F117: Hvad nu hvis vi ønsker at teste om blot en af betin-
B118: =ROW() -> 118 | F118: gelserne er SAND?
B119: =ROW() -> 119
B120: =ROW() -> 120 | F120: Lad os stille følgende spørgsmål:
B121: =ROW() -> 121
B122: =ROW() -> 122 | C122: 5 | D122: 10 | E122: =(C122=D122) -> FALSE | F122: ="Er værdien i celle "&mycell(C122)&" lig med værdien i celle "&mycell(D122)&"?" -> Er værdien i celle C122 lig med værdien i celle D122?
B123: =ROW() -> 123 | E123: =(C122>100) -> FALSE | F123: ="Er værdien i celle "&mycell(C122)&" større end 100?" -> Er værdien i celle C122 større end 100?
B124: =ROW() -> 124 | E124: =(D122>8) -> TRUE | F124: ="Er værdien i celle "&mycell(D122)&" større end 8?" -> Er værdien i celle D122 større end 8?
B125: =ROW() -> 125
B126: =ROW() -> 126 | E126: =E122+E123+E124 -> 1 | F126: =_xlfn.FORMULATEXT(E126) -> =E122+E123+E124
B127: =ROW() -> 127
B128: =ROW() -> 128 | F128: I tilfældet her ønsker vi at vide om blot en af betin-
B129: =ROW() -> 129 | F129: gelserne er SAND. Det spiller ingen rolle hvor mange
B130: =ROW() -> 130 | F130: der er SAND, så længe bare en af dem er SAND.
B131: =ROW() -> 131 | F131: Svaret er nemt at finde simpelthen ved at summere
B132: =ROW() -> 132 | F132: resultaterne og se om summen er større end nul. I
B133: =ROW() -> 133 | E133: =((C122=D122) + (C122>100) + (D122>8)) > 0 -> TRUE | F133: ="cell "&mycell(E133)&" er vist hvordan man laver formlen." -> cell E133 er vist hvordan man laver formlen.
E136: =_xlfn.FORMULATEXT(E133) -> =((C122=D122) + (C122>100) + (D122>8)) > 0
B139: OG
B141: OG funktionen returnerer SAND hvis alle argumenter er sande. Funktionen returnerer FALSK
B142: hvis et eller flere argumenter er falske.
B144: Syntaks
B145: OG(logisk1; logiskl2, ...)
B146: Logisk1, logisk2, ... er 1 til 30 betingelser som kan være enter sande eller falske.
C148: =CHAR(COLUMN()+64) -> C | D148: =CHAR(COLUMN()+64) -> D | E148: =CHAR(COLUMN()+64) -> E | F148: =CHAR(COLUMN()+64) -> F | G148: =CHAR(COLUMN()+64) -> G
B150: =ROW() -> 150 | C150: Formel | G150: Resultat
B151: =ROW() -> 151 | C151: =OG(5 > 3; 80 < 96) | H151: Indtast formler i
B152: =ROW() -> 152 | C152: =OG(2+2 = 4; 2*4 = 5) | H152: =mycell(G151)&":"&mycell(G154)&" som vist i" -> G151:G154 som vist i
B153: =ROW() -> 153 | C153: =OG(SAND; FALSK)*1 | H153: =mycell(C151)&":"&mycell(C154)&"." -> C151:C154.
B154: =ROW() -> 154 | C154: =OG(SAND; SAND)*1
B157: Eksempel 6
B158: Antag at oversigten herunder viser nogle kunders køb i løbet af det seneste år og de samme
B159: kunders gæld ved årets udgang. Nu ønsker du at identificere de kunder, hvorom det gælder,
B160: at de både har købt mere end 200 styk i årets løb og har en gæld ved årets udgang på mindre
B161: end 2.000.
B163: ="Opret de nødvendige formler i "&mycell(G167)&":"&mycell(G170)&"." -> Opret de nødvendige formler i G167:G170.
C165: =CHAR(COLUMN()+64) -> C | E165: =CHAR(COLUMN()+64) -> E | G165: =CHAR(COLUMN()+64) -> G
B166: =ROW() -> 166 | C166: Købte antal styk | E166: Gæld | G166: Result
B167: =ROW() -> 167 | C167: 100 | E167: 3000 | J167: =AND(C167>200,E167<2000) -> FALSE
B168: =ROW() -> 168 | C168: 100 | E168: 1000 | J168: =AND(C168>200,E168<2000) -> FALSE
B169: =ROW() -> 169 | C169: 300 | E169: 3000 | J169: FALSE
B170: =ROW() -> 170 | C170: 300 | E170: 1000 | J170: TRUE
B172: Sæt x hvis du ønsker hjælp
B177: Med to betingelser - kald dem p og q - er der følgende muligheder:
C179: =CHAR(COLUMN()+64) -> C | D179: =CHAR(COLUMN()+64) -> D | E179: E | F179: F | G179: G | H179: H | I179: I | J179: J
B180: =ROW() -> 180 | C180: p | E180: q | G180: =_xlfn.FORMULATEXT(G181) -> =AND(C181;E181) | I180: =_xlfn.FORMULATEXT(I181) -> =C181*E181
B181: =ROW() -> 181 | C181: =FALSE -> FALSE | E181: =FALSE -> FALSE | G181: =AND(C181,E181) -> FALSE | I181: =C181*E181 -> 0
B182: =ROW() -> 182 | C182: =FALSE -> FALSE | E182: =TRUE -> TRUE | G182: =AND(C182,E182) -> FALSE | I182: =C182*E182 -> 0
B183: =ROW() -> 183 | C183: =TRUE -> TRUE | D183: 800 | E183: =FALSE -> FALSE | G183: =AND(C183,E183) -> FALSE | I183: =C183*E183 -> 0
B184: =ROW() -> 184 | C184: =TRUE -> TRUE | D184: 25 | E184: =TRUE -> TRUE | G184: =AND(C184,E184) -> TRUE | I184: =C184*E184 -> 1
B186: OG funktionen returnerer SAND hvis alle argumenter er sande, FALSK hvis bare ét af argumen-
B187: terne er falske.
B189: Bemærk, jf. kolonnen yderst til højre i ovenstående tabel, som tidligere nævnt, at når SAND og FALSK
B190: indgår I et regneudtryk (her multiplikation) så bliver SAND og FALSK konverteret til henholdsvis 1 og 0.
C192: = 0 * 0 = 0
C193: = 0 * 1 = 0
C194: = 1 * 0 = 0
C195: = 1 * 1 = 1
B199: ELLER
B201: Returnerer SAND hvis ét eller flere af argumenterne er sande; returnerer FALSK hvis alle argu-
B202: menter er falske.
B204: Syntaks
B205: ELLER(logisk1; logiskl2, ...)
B206: Logisk1, logisk2, ... er 1 til 30 betingelser som kan være enter sande eller falske.
C208: =CHAR(COLUMN()+64) -> C | D208: =CHAR(COLUMN()+64) -> D | E208: =CHAR(COLUMN()+64) -> E | F208: =CHAR(COLUMN()+64) -> F | G208: =CHAR(COLUMN()+64) -> G
B210: =ROW() -> 210 | C210: Formel | G210: Resultat
B211: =ROW() -> 211 | C211: =ELLER(2>3; 3<4) | G211: =OR(2>3,3<4) -> TRUE | H211: Indtast formler i
B212: =ROW() -> 212 | C212: =ELLER(SAND; FALSK)*1 | G212: =OR(TRUE,FALSE)*1 -> 1 | H212: =mycell(G211)&":"&mycell(G213)&" som vist i" -> G211:G213 som vist i
B213: =ROW() -> 213 | C213: =ELLER(5=7; 2<>2)*1 | G213: =OR(5=7,2<>2)*1 -> 0 | H213: =mycell(C211)&":"&mycell(C213)&"." -> C211:C213.
B217: Med to betingelser - kald dem p og q - er der følgende muligheder:
C219: =CHAR(COLUMN()+64) -> C | E219: =CHAR(COLUMN()+64) -> E | G219: =CHAR(COLUMN()+64) -> G | I219: =CHAR(COLUMN()+64) -> I
B220: =ROW() -> 220 | C220: p | E220: q | G220: =ELLER(p;q) | I220: = ((p + q) > 0) *1
B221: =ROW() -> 221 | C221: FALSE | E221: FALSE | G221: =OR(C221,E221) -> FALSE | I221: =((C221+E221)>0)*1 -> 0
B222: =ROW() -> 222 | C222: FALSE | E222: TRUE | G222: =OR(C222,E222) -> TRUE | I222: =((C222+E222)>0)*1 -> 1
B223: =ROW() -> 223 | C223: TRUE | D223: 800 | E223: FALSE | G223: =OR(C223,E223) -> TRUE | I223: =((C223+E223)>0)*1 -> 1
B224: =ROW() -> 224 | C224: TRUE | D224: 25 | E224: TRUE | G224: =OR(C224,E224) -> TRUE | I224: =((C224+E224)>0)*1 -> 1
C226: = 0 + 0 = 0
C227: = 0 + 1 > 0
C228: = 1 + 0 > 0
C229: = 1 + 1 > 0
B232: IKKE
B234: Vender argumentets værdi om. Brug IKKE når du vil sikre, at en værdi ikke er lig med en be-
B235: stemt værdi.
B237: Syntaks
B238: IKKE(logisk)
B240: Logisk er en værdi eller et udsagn der kan være SAND eller FALSK. Hvis logisk er FALSK vil funk-
B241: tionen IKKE returnere SAND; hvis logisk er SAND vil IKKE returnere FALSK.
C243: =CHAR(COLUMN()+64) -> C | E243: =CHAR(COLUMN()+64) -> E
B244: =ROW() -> 244 | C244: Sandhedsværdi (p) | E244: =IKKE(p)
B245: =ROW() -> 245 | C245: =2=2 -> TRUE | E245: =NOT(C245) -> FALSE
B246: =ROW() -> 246 | C246: =5=7 -> FALSE | E246: =NOT(C246) -> TRUE
B249: Opgaver
B251: Hvis du er sikker på, at du ønsker hjælp til opgaverne herunder kan du sætte et x i den
B252: blå celle i kolonne C.
C255: =CHAR(COLUMN()+64) -> C
B256: =ROW() -> 256 | C256: Data
B257: =ROW() -> 257 | C257: 15 | D257: ="Indtast en OG formel der viser om "&mycell(C257)&" > "&mycell(C258)&" og "&mycell(C257)&" < "&mycell(C259) -> Indtast en OG formel der viser om C257 > C258 og C257 < C259
B258: =ROW() -> 258 | C258: 9 | D258: er SAND eller FALSK.
B259: =ROW() -> 259 | C259: 8
C263: A. | G263: =IF(B263="x",_xlfn.FORMULATEXT(AB263),"") ->  | AB263: =AND(C257 > C258,C257 < C259) -> FALSE
G264: =IF(B263="x","alternativt","") -> 
G265: =IF(B263="x",_xlfn.FORMULATEXT(AB265),"") ->  | AB265: =(C257 > C258)*(C257 < C259) -> 0
C268: =CHAR(COLUMN()+64) -> C
B269: =ROW() -> 269 | C269: Data
B270: =ROW() -> 270 | C270: Spade | E270: ="Indtast en OG formel der viser om "&mycell(C270)&" = "&mycell(C272)&" og " -> Indtast en OG formel der viser om C270 = C272 og
B271: =ROW() -> 271 | C271: Vaskeklud | E271: =mycell(C270)&" = "&mycell(C271)&" er SAND eller FALSK." -> C270 = C271 er SAND eller FALSK.
... 63 more rows

Sheet HVIS+
B2: Rabat og leveringsgebyr
C4: =CHAR(COLUMN()+64) -> C | D4: =CHAR(COLUMN()+64) -> D | E4: =CHAR(COLUMN()+64) -> E | F4: F | G4: G | H4: H | I4: I | J4: J
B5: =ROW() -> 5 | E5: Vare 1 | F5: Vare 2 | G5: Vare 3 | H5: Vare 4 | I5: Vare 5 | J5: Vare 6
B6: =ROW() -> 6 | C6: Antal | E6: 5 | F6: 63 | G6: 36 | H6: 45 | I6: 87 | J6: 90
B7: =ROW() -> 7 | C7: Stk. Pris | E7: 50 | F7: 70 | G7: 30 | H7: 40 | I7: 50 | J7: 60
B8: =ROW() -> 8 | C8: Køb | E8: =E6*E7 -> 250 | F8: 4410 | G8: 1080 | H8: 1800 | I8: 4350 | J8: 5400
B9: =ROW() -> 9 | C9: Rabat % | L9: =IF(E8 > $I$17, $J$17, IF(E8 > $I$18, $J$18, IF(E8 > $I$19, $J$19, 0))) -> 0 | M9: 0.1 | N9: 0.05 | O9: 0.05 | P9: 0.1 | Q9: 0.1
B10: =ROW() -> 10 | C10: Leveringsgebyr % | L10: =IF(E6 >= $I$22, J22, IF(E6 >= $I$23, $J$23, IF(E6 >= $I$24, $J$24, IF(E6 > $I$25, $J$25, 0)))) -> 0.2 | M10: 0.05 | N10: 0.1 | O10: 0.1 | P10: 0 | Q10: 0
B11: =ROW() -> 11 | C11: Rabat
B12: =ROW() -> 12 | C12: Leveringsgebyr
B13: =ROW() -> 13 | C13: Køb i alt
B15: Udregn prisen for varerne. I forbindelse med rabat og levering er der følgende betingelser:
B17: Der ydes rabat efter følgende regler | I17: 4000 | J17: 0.1
B18: • 5% rabat ved køb mellem 1.000 og 4.000 (køb >= 1000 og køb < 4.000) | I18: 1000 | J18: 0.05
B19: • 10% rabat ved køb større end 4.000 (køb >= 4.000) | I19: 0 | J19: 0 | K19: Hvis man senere ændrer i sine
K20: rabat- eller leveringsbetingelser
B21: Der skal betales leveringsgebyr efter følgende regler: | K21: er det nemmere at rette tallene i
B22: • 20% af prisen på køb under 25 stk. (køb < 25) | I22: 75 | J22: 0 | K22: de grå celler i stedet for at skulle
B23: • 10% af prisen på køb på 25, men under 50 stk. (25 <= køb < 50) | I23: 50 | J23: 0.05 | K23: rette alle formler.
B24: • 5% af prisen på køb på 50, men under 75 stk. (50 <= køb < 75) | I24: 25 | J24: 0.1
B25: • 0% af prisen på køb på 75 stk. eller mere. (køb >= 75) | I25: 0 | J25: 0.2
B28: Ønsker du hjælp, sæt x
B33: Jobkode baseret på to kriterier
C35: =CHAR(COLUMN()+64) -> C | D35: =CHAR(COLUMN()+64) -> D | E35: =CHAR(COLUMN()+64) -> E | F35: =CHAR(COLUMN()+64) -> F | G35: =CHAR(COLUMN()+64) -> G | I35: =IF(AND(E53="x",E54="x",E55="x"),"3 forskellige formler","") -> 
B36: =ROW() -> 36 | C36: Navn | D36: Område | E36: Salg | F36: Anciennitet | G36: Job-kode | I36: Job-kode | J36: Job-kode | K36: Job-kode
A37: =IF((AND(F37>5,E37>60000)),2,1) -> 1 | B37: =ROW() -> 37 | C37: Anders | D37: Øst | E37: 120000 | F37: 2 | I37: =IF((AND(F37>5,E37>60000)),2,1) -> 1 | J37: =IF(OR(F37<=5,E37<=60000),1,2) -> 1 | K37: =(E37>60000)*(F37>5)*2+((E37<=60000)+(F37<=5)>=1) -> 1 | L37: =IF(E53="","","Formel i "&mycell(I37)&": "&_xlfn.FORMULATEXT(I37)) -> 
A38: =IF(OR(F37<=5,E7<=60000),1,2) -> 1 | B38: =ROW() -> 38 | C38: Berit | D38: Vest | E38: 253812 | F38: 9 | I38: =IF((AND(F38>5,E38>60000)),2,1) -> 2 | J38: =IF(OR(F38<=5,E38<=60000),1,2) -> 2 | K38: =(E38>60000)*(F38>5)*2+((E38<=60000)+(F38<=5)>=1) -> 2
A39: =(E37>60000)*(F37>5)*2+((E37<=60000)+(F37<=5)>=1) -> 1 | B39: =ROW() -> 39 | C39: Carsten | D39: Øst | E39: 253812 | F39: 3 | I39: 1 | J39: 1 | K39: 1
B40: =ROW() -> 40 | C40: Dorthe | D40: Syd | E40: 72000 | F40: 12 | I40: 2 | J40: 2 | K40: 2 | L40: =IF(E54="","","Formel i "&mycell(J40)&": "&_xlfn.FORMULATEXT(J40)) -> 
B41: =ROW() -> 41 | C41: Esben | D41: Syd | E41: 12300 | F41: 6 | I41: 1 | J41: 1 | K41: 1
B42: =ROW() -> 42 | C42: Finn | D42: Nord | E42: 61000 | F42: 7 | I42: 2 | J42: 2 | K42: 2
B43: =ROW() -> 43 | C43: Gunhild | D43: Øst | E43: 40000 | F43: 4 | I43: 1 | J43: 1 | K43: 1 | L43: =IF(E55="","","Formel i "&mycell(K43)&": "&_xlfn.FORMULATEXT(K43)) -> 
B45: Ovenstående viser dine sælgeres årlige salg pr. område samt sælgernes | I45: =IF(AND(E53="x",E54="x",E55="x"),"Prøv på skift at vælge celle "&mycell(I37)&", "&mycell(J40)&" og "&mycell(K43)&",","") -> 
B46: anciennitet. Du ønsker en formel i kolonne H der returnerer en job kode, | I46: =IF(AND(E53="x",E54="x",E55="x"),"tryk på formler på båndet og herefter på","") -> 
B47: baseret på to forskellige kriterier. Sælgere med en anciennitet på mere | I47: =IF(AND(E53="x",E54="x",E55="x"),"Evaluer formel i gruppen Formelrevision.","") -> 
B48: end fem år og som har haft et årligt salg på mere end 60.000 skal have | I48: =IF(AND(E53="x",E54="x",E55="x"),"Tryk herefter Evaluer knappen og forstå,","") -> 
B49: job-kode 2. Alle andre skal have job-kode 1. | I49: =IF(AND(E53="x",E54="x",E55="x"),"hvad der sker for hvert klik (hvert bereg-","") -> 
I50: =IF(AND(E53="x",E54="x",E55="x"),"ningstrin.","") -> 
B51: Lav sådan en formel.
B53: Ønsker du at se et forslag
B54: Endnu et forslag
B55: Et tredje forslag
B60: Gageforhøjelse
C62: =CHAR(COLUMN()+64) -> C | D62: D | E62: E | F62: F | G62: G | H62: H
B64: =ROW() -> 64 | C64: Navn | E64: Gage | F64: Job-kode | G64: Forhøjelse | H64: Ny gage | J64: Formel1 | K64: Formel2 | L64: Formel3 | M64: Formel4 | N64: Formel5
B65: =ROW() -> 65 | C65: Peter | E65: 22600 | F65: 1 | J65: =IF(F65=1,$F$78,IF(F65=2,$F$78,IF(F65=3,$F$79,IF(F65=4,$F$79,0)))) -> 0.02 | K65: =IF(OR(F65={1,2}),$F$78,IF(OR(F65={3,4}),$F$79,0)) -> 0.02 | L65: =OR(F65=1,F65=2)*$F$78+OR(F65=3,F65=4)*$F$79 -> 0.02 | M65: =((((F65=1)+(F65=2))*$F$78+((F65=3)+(F65=4))*$F$79)+((F65<>1)*(F65<>2)*(F65<>3)*(F65<>4)*$F$80)) -> 0.02 | N65: =OR(F65={1,2})*$F$78+OR(F65={3,4})*$F$79 -> 0.02
B66: =ROW() -> 66 | C66: Harry | E66: 29400 | F66: 2 | J66: 0.02 | K66: =IF(OR(F66={1,2}),$F$78,IF(OR(F66={3,4}),$F$79,0)) -> 0.02 | L66: 0.02 | M66: 0.02 | N66: =OR(F66={1,2})*$F$78+OR(F66={3,4})*$F$79 -> 0.02
B67: =ROW() -> 67 | C67: Kristian | E67: 24500 | F67: 4 | J67: 0.05 | K67: =IF(OR(F67={1,2}),$F$78,IF(OR(F67={3,4}),$F$79,0)) -> 0.05 | L67: 0.05 | M67: 0.05 | N67: =OR(F67={1,2})*$F$78+OR(F67={3,4})*$F$79 -> 0.05
B68: =ROW() -> 68 | C68: Hanne | E68: 32100 | F68: 4 | J68: 0.05 | K68: =IF(OR(F68={1,2}),$F$78,IF(OR(F68={3,4}),$F$79,0)) -> 0.05 | L68: 0.05 | M68: 0.05 | N68: =OR(F68={1,2})*$F$78+OR(F68={3,4})*$F$79 -> 0.05
B69: =ROW() -> 69 | C69: Erik | E69: 34000 | F69: 3 | J69: 0.05 | K69: =IF(OR(F69={1,2}),$F$78,IF(OR(F69={3,4}),$F$79,0)) -> 0.05 | L69: 0.05 | M69: 0.05 | N69: =OR(F69={1,2})*$F$78+OR(F69={3,4})*$F$79 -> 0.05
B70: =ROW() -> 70 | C70: Frank | E70: 28950 | F70: 0 | J70: 0 | K70: =IF(OR(F70={1,2}),$F$78,IF(OR(F70={3,4}),$F$79,0)) -> 0 | L70: 0 | M70: 0 | N70: =OR(F70={1,2})*$F$78+OR(F70={3,4})*$F$79 -> 0
B71: =ROW() -> 71 | C71: Grethe | E71: 31000 | F71: 4 | J71: 0.05 | K71: =IF(OR(F71={1,2}),$F$78,IF(OR(F71={3,4}),$F$79,0)) -> 0.05 | L71: 0.05 | M71: 0.05 | N71: =OR(F71={1,2})*$F$78+OR(F71={3,4})*$F$79 -> 0.05
B72: =ROW() -> 72 | C72: Ulla | E72: 19980 | F72: 2 | J72: 0.02 | K72: =IF(OR(F72={1,2}),$F$78,IF(OR(F72={3,4}),$F$79,0)) -> 0.02 | L72: 0.02 | M72: 0.02 | N72: =OR(F72={1,2})*$F$78+OR(F72={3,4})*$F$79 -> 0.02
B73: =ROW() -> 73 | C73: Jakob | E73: 27300 | F73: 9 | J73: 0 | K73: =IF(OR(F73={1,2}),$F$78,IF(OR(F73={3,4}),$F$79,0)) -> 0 | L73: 0 | M73: 0 | N73: =OR(F73={1,2})*$F$78+OR(F73={3,4})*$F$79 -> 0
B74: =ROW() -> 74 | C74: Svend | E74: 27000 | F74: 1 | J74: 0.02 | K74: =IF(OR(F74={1,2}),$F$78,IF(OR(F74={3,4}),$F$79,0)) -> 0.02 | L74: 0.02 | M74: 0.02 | N74: =OR(F74={1,2})*$F$78+OR(F74={3,4})*$F$79 -> 0.02
B75: =ROW() -> 75 | C75: Total
B78: Job-kode 1 eller 2, forhøjelse | F78: 0.02 | G78: af gage
B79: Job-kode 3 eller 4, forhøjelse | F79: 0.05 | G79: af gage
B80: Job-kode forskellig fra 1, 2, 3 eller 4 | F80: 0 | G80: af gage
B82: Lav en formel der beregner forhøjelse (i procent) og ny gage samt total.
B85: Sæt x hvis du ønsker hjælp?
B90: BMI
B92: BMI er forkortelsen for
B93: Body Mass Index - kropsmasseindeks.
B95: BMI angiver forholdet mellem | F95: For en person med en vis højde forhøjes BMI,
B96: vægt og højde ifølge | F96: når vægten stiger.
B97: beregningen: | F97: I litteraturen findes der forskellige grænse-
F98: værdier for, hvad der betragtes som overvægt.
F99: Nedenstående tabel viser de grænseværdier,
F100: som WHO angav i 1985.
F102: Vægtklasse | H102: Mand | I102: Kvinde
F103: Undervægtig | H103: <20 | I103: <18,6
F104: Normalvægtig | H104: 20,0-25,0 | I104: 18,6-23,8
F105: Overvægtig | H105: 25,0-30,0 | I105: 23,8-28,6
F106: Stærkt overvægtig | H106: >30 | I106: >28,6
F108: Når BMI stiger til en værdi på over 25, vil det
F109: normalt være udtryk for, at ens fedtdepoter er
F110: så store at det har sundhedsmæssig betydning.
F111: Jo mere BMI overstiger denne grænse, jo
F112: større negativ Indflydelse vil det have på sund-
F113: hedstilstanden.
B115: Prøv at lave en model, hvor du laver plads til indtastning af vægt (i kg) og højde
B116: (i centimeter) og endelig til at angive, om det drejer sig om en mand eller en kvinde
B117: I en tom celle skal du nu udregne BMI (med 1 decimal) i overensstemmelse med
B118: formlen ovenfor. I en anden tom celle bruger du en funktion til at returnere en af
B119: ="teksterne i "&mycell(F103)&":"&mycell(F106)&", altså Undervægtig, Normalvægtig, Overvægtig eller Stærkt" -> teksterne i F103:F106, altså Undervægtig, Normalvægtig, Overvægtig eller Stærkt
B120: overvægtig afhængig af BMI-tallet og afhængig af køn.
B122: • Beregn BMI for en mand på 87 kg med en højde på 170 cm.
B123: • En 165 cm høj kvinde vejer 68 kg. Find hendes BMI og angiv hendes vægtklasse.
B124: Hvor meget skal kvinden tabe sig for at være normalvægtig?
B125: • Prøv om du kan lave en formel, som selv udregner vægt, når du indtaster højde
B126: og ønsket BMI.
B131: Hvis du ønsker hjælp - sæt x her
B133: Køn | D133: Kvinde
B134: Vægt, kg | D134: 68
B135: Højde, cm | D135: 165
B138: BMI | D138: =D134/(D135/100)^2 -> 24.97704316 | F138: =IF(D133=E142,INDEX(B143:B146,MATCH(D138,E143:E146,1)),INDEX(B143:B146,MATCH(D138,D143:D146,1))) -> Overvægtig
B142: Vægtklasse | D142: Mand | E142: Kvinde
B143: Undervægtig | D143: 0 | E143: 0
B144: Normalvægtig | D144: 20 | E144: 18.6
B145: Overvægtig | D145: 25 | E145: 23.8
B146: Stærkt overvægtig | D146: 30 | E146: 28.6
B151: Befordringsfradrag | F151: (Forældet)
B153: Herunder ser du gældende regler for befordringsfradrag.
B154: ="Det er din opgave at lave en formel i celle "&mycell(O174)&" der udregner det korrekte fradrag, baseret på oplysningerne" -> Det er din opgave at lave en formel i celle O174 der udregner det korrekte fradrag, baseret på oplysningerne
B155: ="i cellerne "&mycell(O158)&":"&mycell(O161)&" og "&mycell(O164)&":"&mycell(O165)&". Læg i øvrigt mærke til, at disse celler kun indeholder tal." -> i cellerne O158:O161 og O164:O165. Læg i øvrigt mærke til, at disse celler kun indeholder tal.
B156: Der ses bort fra reglerne om udkantskommuner.
M158: Undergrænse | O158: 24
M159: Grænse for højeste sats | O159: 100
M160: Fradrag 24-100 km | O160: 2
M161: Fradrag 0ver 100 km | O161: 1
M164: Kørte km pr. dag | O164: 100
M165: Antal arbejdsdage | O165: 200
M168: Fradrag
M169: Fradrag
M172: Sæt x for hjælp
M174: Fradrag | O174: =MAX(0,MIN((O164-O158)*2,(O159-O158)*O160+(O164-O159)*O161)) -> 152
M175: Fradrag | O175: =IF(O164<O158,0,IF(O164<100,(O164-O158)*O160,(O159-O158)*2+(O164-O159)*O161)) -> 152
B180: Flere OG-betingelser
B183: =CHAR(COLUMN()+64) -> B | C183: =CHAR(COLUMN()+64) -> C | D183: =CHAR(COLUMN()+64) -> D | E183: E | G183: ="Lav en formel i celle "&mycell(E184)&" under følgende betingelser:" -> Lav en formel i celle E184 under følgende betingelser:
B184: =ROW() -> 184 | C184: 1 | D184: 11 | G184: ="Hvis "&mycell(C184)&" > 0 og "&mycell(D184)&" >0 så skal "&mycell(E184)&" være lig med 10" -> Hvis C184 > 0 og D184 >0 så skal E184 være lig med 10
B185: =ROW() -> 185 | C185: 2 | D185: -12 | G185: ="Hvis" &mycell(C184)&" > 0 og "&mycell(D184)&" <0 så skal "&mycell(E184)&" være lig med 20" -> HvisC184 > 0 og D184 <0 så skal E184 være lig med 20
B186: =ROW() -> 186 | C186: -5 | D186: 12 | G186: ="Hvis "&mycell(C184)&" < 0 og "&mycell(D184)&" >0 så skal "&mycell(E184)&" være lig med 30" -> Hvis C184 < 0 og D184 >0 så skal E184 være lig med 30
B187: =ROW() -> 187 | C187: -1 | D187: -1 | G187: ="Hvis "&mycell(C184)&" < 0 og "&mycell(D184)&" <0 så skal "&mycell(E184)&" være lig med 40" -> Hvis C184 < 0 og D184 <0 så skal E184 være lig med 40
G189: ="Kopier formlen ned til celle "&mycell(E187)&"." -> Kopier formlen ned til celle E187.
B192: Sæt x for hjælp
B194: =CHAR(COLUMN()+64) -> B | C194: =CHAR(COLUMN()+64) -> C | D194: =CHAR(COLUMN()+64) -> D | E194: =CHAR(COLUMN()+64) -> E | F194: =CHAR(COLUMN()+64) -> F
B195: =ROW() -> 195 | C195: 1 | D195: 11 | E195: =IF(AND(C195>0,D195>0),10,IF(AND(C195>0,D195<0),20,IF(AND(C195<0,D195>0),30,IF(AND(C195<0,D195<0),40)))) -> 10 | F195: =10*(BIN2DEC(N(C195<0)&N(D195<0))+1) -> 10
B196: =ROW() -> 196 | C196: 2 | D196: -12 | E196: =IF(AND(C196>0,D196>0),10,IF(AND(C196>0,D196<0),20,IF(AND(C196<0,D196>0),30,IF(AND(C196<0,D196<0),40)))) -> 20 | F196: =10*(BIN2DEC(N(C196<0)&N(D196<0))+1) -> 20
B197: =ROW() -> 197 | C197: -5 | D197: 12 | E197: 30 | F197: 30
B198: =ROW() -> 198 | C198: -1 | D198: -1 | E198: 40 | F198: 40
B203: Minimum/Maksimum
B204: ="Lav en formel der på baggrund af et tal i celle "&mycell(C207)&" ganger det med 0,15, returnerer" -> Lav en formel der på baggrund af et tal i celle C207 ganger det med 0,15, returnerer
B205: resultatet med et minimum på 200 og et maksimum på 400.
C207: 3000 | F207: =IF(C207*0.15<200,200,IF(C207*0.15>400,400,C207*0.15)) -> 400
F208: =MIN(MAX(C207*0.15,200),400) -> 400
B211: Sæt x for hjælp | D211: x
B216: Generer en af flere tabeller
B217: ="I celle "&mycell(E232)&" er der en Drop Down boks hvor du kan vælge mellem Ingen, Table1" -> I celle E232 er der en Drop Down boks hvor du kan vælge mellem Ingen, Table1
B218: og Table2. Prøv de forskellige valgmuligheder.
C220: =CHAR(COLUMN()+64) -> C | D220: D | E220: E | F220: F | G220: G | H220: H
B222: =ROW() -> 222 | D222: Table1 | G222: Table2
B223: =ROW() -> 223 | D223: Tekst1 | E223: Tal1 | G223: Tekst2 | H223: Tal21
B224: =ROW() -> 224 | D224: A | E224: 1 | G224: p | H224: 111
B225: =ROW() -> 225 | D225: B | E225: 2 | G225: q | H225: 222
B226: =ROW() -> 226 | D226: C | E226: 3 | G226: r | H226: 333
B227: =ROW() -> 227 | D227: D | E227: 4 | G227: s | H227: 444
B228: =ROW() -> 228 | D228: E | E228: 5 | G228: t | H228: 555
B229: =ROW() -> 229
B230: =ROW() -> 230
B231: =ROW() -> 231
B232: =ROW() -> 232 | D232: Vis | E232: Ingen | G232: Hvis du har lyst, kan du
B233: =ROW() -> 233 | G233: prøve at bruge betinget
B234: =ROW() -> 234 | D234: =IF(E232="Table1",INDEX(Table1[],,),IF(E232="Table2",INDEX(Table2[],,),"")) ->  | G234: formatering til at gengive
B235: =ROW() -> 235 | G235: samme formatering i
B236: =ROW() -> 236 | G236: ="området "&mycell(D234)&":"&mycell(E238)&" som" -> området D234:E238 som
B237: =ROW() -> 237 | G237: vist i de oprindelige
B238: =ROW() -> 238 | G238: tabeller. Det kræver en
B239: =ROW() -> 239 | G239: hel del arbejde.
B240: =ROW() -> 240

Sheet Opgaver
B2: Opgaver der involverer logiske (+ enkelte andre) funktioner
C5: =CHAR(COLUMN()+64) -> C | D5: D | E5: E | F5: F | G5: G | H5: H | I5: I
B7: =ROW() -> 7
B8: =ROW() -> 8 | C8: 1 | D8: Jeg har regneark, hvor noget køb og salg ender ud i gevinst/tab i kolonne D. I kolonne
B9: =ROW() -> 9 | D9: E vil jeg gerne summere kolonne D løbende sammen, men ønsker kun der står tal
B10: =ROW() -> 10 | D10: løbende i kolonne E efterhånden som gevinst/tab bliver lagt ind. Er der en som har en
B11: =ROW() -> 11 | D11: løsning?
B12: =ROW() -> 12
B13: =ROW() -> 13
B14: =ROW() -> 14 | D14: Gevinst/Tab | E14: Resultat
A15: =IF(D15<>"",SUM(D$15:D15),"") -> 13765 | B15: =ROW() -> 15 | D15: 13765 | H15: =IF(D15<>"",SUM(D$15:D15),"") -> 13765 | I15: =IF($D15="","",SUM(OFFSET($D$15,,,COUNT($D$15:D15)))) -> 13765
A16: =IF(D16<>"",SUM(D$15:D16),"") -> 1912 | B16: =ROW() -> 16 | D16: -11853 | H16: =IF(D16<>"",SUM(D$15:D16),"") -> 1912 | I16: =IF($D16="","",SUM(OFFSET($D$15,,,COUNT($D$15:D16)))) -> 1912
A17: =IF(D17<>"",SUM(D$15:D17),"") -> -9570 | B17: =ROW() -> 17 | D17: -11482 | H17: =IF(D17<>"",SUM(D$15:D17),"") -> -9570 | I17: =IF($D17="","",SUM(OFFSET($D$15,,,COUNT($D$15:D17)))) -> -9570
B18: =ROW() -> 18 | D18: 12037 | H18: =IF(D18<>"",SUM(D$15:D18),"") -> 2467 | I18: =IF($D18="","",SUM(OFFSET($D$15,,,COUNT($D$15:D18)))) -> 2467
B19: =ROW() -> 19 | H19: =IF(D19<>"",SUM(D$15:D19),"") ->  | I19: =IF($D19="","",SUM(OFFSET($D$15,,,COUNT($D$15:D19)))) -> 
B20: =ROW() -> 20 | H20: =IF(D20<>"",SUM(D$15:D20),"") ->  | I20: =IF($D20="","",SUM(OFFSET($D$15,,,COUNT($D$15:D20)))) -> 
B21: =ROW() -> 21 | H21: =IF(D21<>"",SUM(D$15:D21),"") ->  | I21: =IF($D21="","",SUM(OFFSET($D$15,,,COUNT($D$15:D21)))) -> 
B22: =ROW() -> 22 | H22: =IF(D22<>"",SUM(D$15:D22),"") ->  | I22: =IF($D22="","",SUM(OFFSET($D$15,,,COUNT($D$15:D22)))) -> 
B23: =ROW() -> 23 | H23: =IF(D23<>"",SUM(D$15:D23),"") ->  | I23: =IF($D23="","",SUM(OFFSET($D$15,,,COUNT($D$15:D23)))) -> 
B24: =ROW() -> 24 | E24: =IF(D24<>"",SUM(D$15:D24),"") -> 
B25: =ROW() -> 25
B26: =ROW() -> 26 | E26: =IF(D26<>"",SUM(D$15:D26),"") ->  | F26: Sæt x for hjælp
B27: =ROW() -> 27 | E27: =IF(D27<>"",SUM(D$15:D27),"") -> 
B28: =ROW() -> 28 | E28: =IF(D28<>"",SUM(D$15:D28),"") -> 
B29: =ROW() -> 29
B30: =ROW() -> 30
B31: =ROW() -> 31 | C31: =C8+1 -> 2 | D31: Mit problem er, at jeg gerne have Excel til (ved at bruge HVIS funktionen) at svare
B32: =ROW() -> 32 | D32: henholdsvis "OK" eller "UMULIGT" når den læser tallet i en celle.
B33: =ROW() -> 33 | D33: ="HVIS tallet i celle "&mycell(D36)&" IKKE er et kommatal skal formlen i celle "&mycell(G36)&" svare ""OK""" -> HVIS tallet i celle D36 IKKE er et kommatal skal formlen i celle G36 svare "OK"
B34: =ROW() -> 34 | D34: ="HVIS tallet i celle "&mycell(D36)&" er et kommatal skal formlen i celle "&mycell(G36)&" svare ""UMULIGT""" -> HVIS tallet i celle D36 er et kommatal skal formlen i celle G36 svare "UMULIGT"
B35: =ROW() -> 35
B36: =ROW() -> 36
B37: =ROW() -> 37
B38: =ROW() -> 38
B39: =ROW() -> 39
B40: =ROW() -> 40 | D40: Sæt x for hjælp | H40: =IF(MOD(D36,1)<>0,"UMULIGT","OK") -> OK
B41: =ROW() -> 41
B42: =ROW() -> 42
B43: =ROW() -> 43 | D43: =IF(F58<>"x","","Hvis ikke du kender funktionen MOD (REST på dansk), så se nærmere i Excels hjælp.") -> 
B44: =ROW() -> 44
B45: =ROW() -> 45
B46: =ROW() -> 46
B47: =ROW() -> 47 | C47: =C31+1 -> 3 | D47: ="Jeg skal lave en formel i celle "&mycell(H53)&", hvor det skal gælde at:" -> Jeg skal lave en formel i celle H53, hvor det skal gælde at:
B48: =ROW() -> 48 | D48: ="Hvis både cellerne "&mycell(D53)&" og "&mycell(F53)&" er tomme, så skal celle "&mycell(H56)&" være tom, men hvis ENTEN "&mycell(D53) -> Hvis både cellerne D53 og F53 er tomme, så skal celle H56 være tom, men hvis ENTEN D53
B49: =ROW() -> 49 | D49: ="ELLER "&mycell(F53)&" indeholder en tal-værdi, så skal "&mycell(H56)&" vise resultatet af formlen "&mycell(D53)&" - "&mycell(F53)&"." -> ELLER F53 indeholder en tal-værdi, så skal H56 vise resultatet af formlen D53 - F53.
B50: =ROW() -> 50 | D50: Hvordan ser sådan en formel ud
B51: =ROW() -> 51
B52: =ROW() -> 52
B53: =ROW() -> 53 | D53: 45 | F53: 12
B54: =ROW() -> 54
B55: =ROW() -> 55
B56: =ROW() -> 56 | H56: =IF(AND(ISBLANK(D53),ISBLANK(F53)),"",D53-F53) -> 33 | I56: Én måde.
B57: =ROW() -> 57 | H57: =IF(OR(NOT(ISBLANK(D53)),NOT(ISBLANK(F53))),D53-F53,"") -> 33 | I57: En anden måde.
B58: =ROW() -> 58 | D58: Sæt x for hjælp | H58: =IF(OR(D53 <> 0, F53 <> 0), D53-F53,"") -> 33 | I58: En trejde måde.
B59: =ROW() -> 59
B60: =ROW() -> 60
B61: =ROW() -> 61
B62: =ROW() -> 62
B63: =ROW() -> 63 | C63: =C47+1 -> 4 | D63: Hvis afsætning er under 400, skal prisen være 3.
B64: =ROW() -> 64 | D64: Hvis afsætningen er mellem 400-600, skal prisen være 2.
B65: =ROW() -> 65 | D65: Hvis afsætningen er over 600, skal prisen være 1.
B66: =ROW() -> 66
B67: =ROW() -> 67 | D67: Afsætning | F67: Pris
B68: =ROW() -> 68 | D68: 100 | H68: =IF(D68 > 600, 1, IF(D68 >= 400, 2, IF(D68 > 0,3,""))) -> 3
B69: =ROW() -> 69 | H69: =IF(D68 > 0, IF(D68 >= 400, IF(D68 > 600,1,2),3),"") -> 3
B70: =ROW() -> 70
B71: =ROW() -> 71 | D71: Sæt x for hjælp
B72: =ROW() -> 72
B73: =ROW() -> 73
B74: =ROW() -> 74
B75: =ROW() -> 75
B76: =ROW() -> 76 | C76: =C63+1 -> 5 | D76: Jeg skal returnere en tekst hvis et givent felt indeholder et tal indenfor et vist område.
B77: =ROW() -> 77
B78: =ROW() -> 78 | D78: Eksempel:
B79: =ROW() -> 79 | D79: I en celle skal returneres teksten FEJL I NR. hvis tallet i en anden celle ikke er mellem
B80: =ROW() -> 80 | D80: 4 og 8 eller mellem 12 og 24
B81: =ROW() -> 81
B82: =ROW() -> 82 | D82: Celle | F82: Tekst
B83: =ROW() -> 83 | D83: 9
B84: =ROW() -> 84
B85: =ROW() -> 85
B86: =ROW() -> 86 | D86: Sæt x for hjælp | H86: =IF((D83>=4)*(D83<=8)+(D83>=12)*(D83<=24),"","FEJL I NR.") -> FEJL I NR.
B87: =ROW() -> 87
B88: =ROW() -> 88
B89: =ROW() -> 89
B90: =ROW() -> 90
B91: =ROW() -> 91 | C91: =C76+1 -> 6 | D91: Jeg har to celler (en Ja og en Nej celle) i et Excelark. Brugeren skal indtaste et
B92: =ROW() -> 92 | D92: x i enten Ja eller Nej. Der er ingen restriktioner på felterne, så både mulige og
B93: =ROW() -> 93 | D93: umulige kombinationer kan optræde. Resultatet i en tredje celle skal afspejle
B94: =ROW() -> 94 | D94: indtastningen.
B95: =ROW() -> 95
B96: =ROW() -> 96 | D96: Ja: x Nej: Resultat: 1
B97: =ROW() -> 97 | D97: Ja: x Nej: x Resultat: .
B98: =ROW() -> 98 | D98: Ja: Nej: x Resultat: 0
B99: =ROW() -> 99 | D99: Ja: Nej: Resultat: .
B100: =ROW() -> 100
B101: =ROW() -> 101 | D101: Kan man med en fler-ledet HVIS-sætning lavet dette?
B102: =ROW() -> 102
B103: =ROW() -> 103 | D103: JA | E103: NEJ | F103: Resultat
B104: =ROW() -> 104 | D104: x | H104: =IF((D104="x")*(E104<>"x"),1,IF((D104="x")*(E104="x")+(D104<>"x")*(E104<>"x"),".",0)) -> 1
B105: =ROW() -> 105 | D105: x | E105: x | H105: .
B106: =ROW() -> 106 | E106: x | H106: 0
B107: =ROW() -> 107 | H107: =IF((D107="x")*(E107<>"x"),1,IF((D107="x")*(E107="x")+(D107<>"x")*(E107<>"x"),".",0)) -> .
B108: =ROW() -> 108
B109: =ROW() -> 109
B110: =ROW() -> 110 | D110: Sæt x for hjælp
B111: =ROW() -> 111
B112: =ROW() -> 112
B113: =ROW() -> 113
B114: =ROW() -> 114 | C114: =C91+1 -> 7 | D114: Jeg har en timeseddel, og skal have beregnet overtid, når ugen er gået.
B115: =ROW() -> 115 | D115: Følgende skal være opfyldt:
B116: =ROW() -> 116
B117: =ROW() -> 117 | D117: 1) Antal timer alle ugens 5 dage skal være 7,5
B118: =ROW() -> 118 | D118: 2) Antal normaltimer i en uge skal være 37,5
B119: =ROW() -> 119 | D119: Overtid skal beregnes for hver dag, når begge betingelser er opfyldt
B120: =ROW() -> 120 | D120: og meget gerne en total i slut.
B121: =ROW() -> 121
B122: =ROW() -> 122 | D122: Dag | E122: Arbejdstid | F122: Overtid | H122: Overtid
B123: =ROW() -> 123 | D123: Mandag | E123: 7.5 | H123: =IF(AND(E123>7.5,$E$128>37.5),E123-7.5,0) -> 0
B124: =ROW() -> 124 | D124: Tirsdag | E124: 8 | H124: =IF(AND(E124>7.5,$E$128>37.5),E124-7.5,0) -> 0.5
B125: =ROW() -> 125 | D125: Onsdag | E125: 8 | H125: =IF(AND(E125>7.5,$E$128>37.5),E125-7.5,0) -> 0.5
B126: =ROW() -> 126 | D126: Torsdag | E126: 8 | H126: =IF(AND(E126>7.5,$E$128>37.5),E126-7.5,0) -> 0.5
B127: =ROW() -> 127 | D127: Fredag | E127: 7.5 | H127: =IF(AND(E127>7.5,$E$128>37.5),E127-7.5,0) -> 0
B128: =ROW() -> 128 | E128: =SUM(E123:E127) -> 39 | H128: =SUM(H123:H127) -> 1.5
B129: =ROW() -> 129
B130: =ROW() -> 130 | D130: Sæt x for hjælp
B131: =ROW() -> 131
B132: =ROW() -> 132
B133: =ROW() -> 133
B134: =ROW() -> 134
B135: =ROW() -> 135
B136: =ROW() -> 136
B137: =ROW() -> 137 | C137: =C114+1 -> 8 | D137: ="Kan jeg bruge joker tegn som ? * ~ i formler? For eksempel: =HVIS("&mycell(D139)&"=""*K"";3;"""")" -> Kan jeg bruge joker tegn som ? * ~ i formler? For eksempel: =HVIS(D139="*K";3;"")
B138: =ROW() -> 138
B139: =ROW() -> 139 | D139: MH0601NK | I139: =IF(COUNTIF(D139,"*K"),3,"") -> 3
B140: =ROW() -> 140 | I140: =ISNUMBER(SEARCH("*K",D139))*3 -> 3
B141: =ROW() -> 141
B142: =ROW() -> 142
B143: =ROW() -> 143 | D143: Sæt x for hjælp
B144: =ROW() -> 144
B145: =ROW() -> 145
B146: =ROW() -> 146
B147: =ROW() -> 147
B148: =ROW() -> 148 | D148: ="Situationen er, jeg har "&mycell(D151)&" som indeholder et procenttal" -> Situationen er, jeg har D151 som indeholder et procenttal
B149: =ROW() -> 149
B150: =ROW() -> 150
B151: =ROW() -> 151 | D151: 0.89
B152: =ROW() -> 152
B153: =ROW() -> 153
B154: =ROW() -> 154 | D154: ="Formeln i celle "&mycell(F151)&" skal kunne fortælle:" -> Formeln i celle F151 skal kunne fortælle:
B155: =ROW() -> 155
B156: =ROW() -> 156 | D156: ="Celle "&mycell($D$151)&" > 90% = 1000" -> Celle D151 > 90% = 1000 | G156: =IF(D151<=90%,0,IF(D151>90%,IF(D151>100%,IF(D151>110%,2500,1500),1000))) -> 0
B157: =ROW() -> 157 | D157: ="Celle "&mycell($D$151)&" > 100% = 1500" -> Celle D151 > 100% = 1500 | G157: =IF(D151>90%,IF(D151>100%,IF(D151>110%,2500,1500),1000),0) -> 0
B158: =ROW() -> 158 | D158: ="Celle "&mycell($D$151)&" > 110% = 2500" -> Celle D151 > 110% = 2500 | G158: =LOOKUP(D151,{0;0.9;1;1.1},{0;1000;1500;2500}) -> 0
B159: =ROW() -> 159
B160: =ROW() -> 160 | D160: Sæt x for hjælp
B161: =ROW() -> 161
B162: =ROW() -> 162
B163: =ROW() -> 163
B164: =ROW() -> 164
B165: =ROW() -> 165 | C165: =C137+1 -> 9 | D165: Jeg skal bruge en funktion, der hvis klokken er mellem 00:01 og 12:00 viser "formiddag".
B166: =ROW() -> 166 | D166: Hvis klokken er mellem 12:01 og 00:00 skal den vise "eftermiddag".
B167: =ROW() -> 167
B168: =ROW() -> 168 | D168: 00:01:00 | H168: =IF(MOD(D168,1)<0.5,"formiddag","eftermiddag") -> formiddag
B169: =ROW() -> 169
B170: =ROW() -> 170
B171: =ROW() -> 171 | D171: Sæt x for hjælp
B172: =ROW() -> 172
B173: =ROW() -> 173
B174: =ROW() -> 174
B175: =ROW() -> 175 | C175: =C165+1 -> 10 | D175: ="Jeg bruger følgende formel til udregning af timer i en vagtplan =("&mycell(E181)&">"&mycell(F181)&"+"&mycell(F181)&"-"&mycell(E181)&")" -> Jeg bruger følgende formel til udregning af timer i en vagtplan =(E181>F181+F181-E181)
B176: =ROW() -> 176 | D176: =mycell(D181)&"= Ugedag, "&mycell(E181) &"= Starttid, "&mycell(F181)&"= Sluttid og "&mycell(G181)&" indeholder ovenstående formel." -> D181= Ugedag, E181= Starttid, F181= Sluttid og G181 indeholder ovenstående formel.
B177: =ROW() -> 177 | D177: ="Jeg kunne godt bruge en formel, som hvis der står lørdag eller søndag i "&mycell(D181)&" ganger" -> Jeg kunne godt bruge en formel, som hvis der står lørdag eller søndag i D181 ganger
B178: =ROW() -> 178 | D178: ="resultatet i "&mycell(G181)&" (antal timer) med 1,75. Indtast formlen i celle "&mycell(H181)&"." -> resultatet i G181 (antal timer) med 1,75. Indtast formlen i celle H181.
B179: =ROW() -> 179
B180: =ROW() -> 180 | D180: Ugedag | E180: Starttid | F180: Sluttid | G180: Antal timer | H180: Korr. # timer
B181: =ROW() -> 181 | D181: Søndag | E181: 08:00:00 | F181: 16:00:00 | G181: =(E181>F181)+F181-E181 -> 08:00:00
B182: =ROW() -> 182
B183: =ROW() -> 183
B184: =ROW() -> 184 | H184: =OR(D181={"Lørdag","Søndag"})*G181*1.75+AND(D181<>{"Lørdag","Søndag"})*G181 -> 14:00:00
B185: =ROW() -> 185
B186: =ROW() -> 186
B187: =ROW() -> 187 | D187: Sæt x for hjælp
B188: =ROW() -> 188
B189: =ROW() -> 189
B190: =ROW() -> 190
C197: =CHAR(COLUMN()+64) -> C | D197: D | E197: E | F197: F | G197: G | H197: H
B198: =ROW() -> 198 | C198: =C175+1 -> 11 | D198: Hvis jeg f.eks. har 20 pakker, i hver kasse kan være 17 pakker.
B199: =ROW() -> 199 | D199: de stidste "løse" skal være i en kasse for sig.
B200: =ROW() -> 200
B201: =ROW() -> 201 | D201: Kan man få Exccel til at lave beregningen, af fordelingen af antalet af hele
B202: =ROW() -> 202 | D202: kasser og hvor mange løse der evt. skal være i den sidste kasse.
B203: =ROW() -> 203
B204: =ROW() -> 204 | E204: Teksten skal være
B205: =ROW() -> 205 | D205: 1 pakke | E205: 1 kasse med 1 løs
B206: =ROW() -> 206 | D206: 2 pakker | E206: 1 kasse med 2 løse
B207: =ROW() -> 207 | D207: 18 pakker | E207: 1 kasse med 17 og 1 kasse med 1 løs
B208: =ROW() -> 208 | D208: 34 pakker | E208: 2 kasser med 17
B209: =ROW() -> 209 | D209: 40 pakker | E209: 2 kasser med 17 og 1 kasse med 6 løse
B210: =ROW() -> 210
... 64 more rows

Sheet Procentregning
B2: Vis brøkdele/procenter | F2: Hele arket her er mest for sjov.
B6: a | C6: b
B7: 1 | C7: 5 | E7: ="Prøv at eksperimentere med forskellige tal i celle "&mycell(C7)&"." -> Prøv at eksperimentere med forskellige tal i celle C7.
B9: =B7&"/"&C7&" = "&TEXT(B7/C7,"#,00%") -> 1/5 = 20,00%
M11: Formler
M12: a | N12: (b-a)
M13: =B7 -> 1 | N13: =ABS(B7-C7) -> 4
B29: a/b er den blå del af cirklen. (b - a)/b er den røde del.
C36: Procent-beregner
C38: Procentberegninger falder i én af tre kategorier, typisk
C39: formuleret som noget i retning af følgende:
C41: A | D41: Hvad er x procent af y
C42: B | D42: x er hvilken procent af y
C43: C | D43: x er y procent af hvilket tal
C45: ="Vælg celle "&mycell(C49)&" og vælg type (A, B eller C), indtast tal i" -> Vælg celle C49 og vælg type (A, B eller C), indtast tal i
C46: ="gule celler og se resultatet i række "&ROW(54:54)&"." -> gule celler og se resultatet i række 54.
C48: Type
C49: A
C51: 25 | E51: 200
C54: =IF(C49="A","Hvad er "&C51&" procent af "&E51,IF(C49="B",C51&" er hvilken procent af "&E51,IF(C49="C",C51&" er "&E51&" procent af ",""))) -> Hvad er 25 procent af 200 | G54: =IF(E51=0,"",IF(C49="A",C51%*E51,IF(C49="B",C51*100/E51,IF(C49="C",C51*100/E51)))) -> 50
C56: Hvis du har lyst, så prøv, uden først at kigge, at lave formler der
C57: ="genererer samme resultater som formlerne i "&mycell(C54)&" og "&mycell(G54)&"." -> genererer samme resultater som formlerne i C54 og G54.
B63: ="Undersøg i detaljer hvordan eksemplet fra række "&ROW(73:73)&" til række "&ROW(99:99)&" er opbygget, hvis" -> Undersøg i detaljer hvordan eksemplet fra række 73 til række 99 er opbygget, hvis
B64: du ønsker en lektion i at kombinere tekst og formler. Læg mærke til at eksemplet
B65: stadigvæk viser det korrekte (håber jeg), hvis du ændrer tallene i de gule celler,
B66: ="uanset om tallet i "&mycell(F79)&" er større end tallet i "&mycell(H79)&" eller omvendt." -> uanset om tallet i F79 er større end tallet i H79 eller omvendt.
B67: Indrømmet - det er ekstremt det her, men faktisk har jeg haft en opgave i praksis,
B68: (varmeregnskab), hvor der var brug for den her viste teknik, idet der automatisk skulle
B69: skrives en meddelelse til forbrugerne, hvor teksten var afhængig af, om deres aconto-
B70: betaling var større eller mindre en det der faktisk skulle betales.
C75: Percentage change between values
F77: 2012 | G77: 2013 | H77: 2014
C79: Revenue | F79: 10116 | G79: 7196 | H79: 6704
C81: ="What is the percentage change between the revenue in "&F77&" and "&H77&"?" -> What is the percentage change between the revenue in 2012 and 2014? | M81: original_value | U81: =F79 -> 10116
C82: =IF(H79<F79,"If the revenue had gone from "&F79&" to "&F79/2&" then it had decreased by 50%.","If the revenue had gone from "&F79&" to "&F79*2&" then it had increased by 50%.") -> If the revenue had gone from 10116 to 5058 then it had decreased by 50%.
C83: =IF(H79<F79,"That is if the revenue is halved, it is decreased by 50%. The revenue", "That is if the revenue is doubled, it is increased by 100%. The revenue") -> That is if the revenue is halved, it is decreased by 50%. The revenue | M83: new_value | U83: =H79 -> 6704
C84: =IF(H79<F79,"decreased from "&F79&" to "&H79&". Since "&H79&" is more than half way between","increased from "&F79&" to "&H79&". "&H79&" is less than double the Revenue in") -> decreased from 10116 to 6704. Since 6704 is more than half way between
C85: =IF(H79>F79,F77&". ",F79&" and "&F79/2&" the percent decrease is less than 50%.") -> 10116 and 5058 the percent decrease is less than 50%. | M85: Percentage change | U85: =(new_value-original_value)/original_value -> -0.3372874654
C86: Now let's get the actual value.
C87: =F79&" times what number will give "&H79&"?" -> 10116 times what number will give 6704? | M87: Alternative formula | U87: =(new_value/original_value) - 1 -> -0.3372874654
C89: =F79&" * x = "&H79 -> 10116 * x = 6704
C90: ="x = "&H79&" / "&F79&" = "&TEXT(H79/F79,"0,0000") -> x = 6704 / 10116 = 0,6627
C92: =IF(H79<F79,"That is we get the revenue in "&H77&" by multiplying the revenue in "&F77&" by ","That is we get the revenue in "&H77&" by multiplying the revenue in "&F77&" by ") -> That is we get the revenue in 2014 by multiplying the revenue in 2012 by
C93: =TEXT(H79/F79,"0,0000")&" meaning that the revenue in "&H77&" is "&TEXT(H79/F79,"0,00%")&" of the revenue in "&F77&"." -> 0,6627 meaning that the revenue in 2014 is 66,27% of the revenue in 2012.
C95: You can use the following formula to calculate the percentage change:
C108: Percentage change if original value and
C109: new value have opposite sign
C112: According to the Company X annual report 2014 net profit/los for the years
C113: were as follows: (DKKm)
F115: 2012 | G115: 2013 | H115: 2014
C117: Net profit/loss for the year | F117: 326 | G117: -935 | H117: -1931
C119: What is the % - change between the net profit/loss in 2012 and in 2014?
C121: The actual change between 2012 and 2014 means something, but dividing
C122: it by a number of the opposite sign does not convey any meaningful
C123: information.
C125: Net Income percent change is the change from the same period from a year
C126: ago. Percent change is not provided if either the latest period or the year ago
C127: period contains a net loss. If a company posts a profit
C128: in the latest period against a loss in the year-ago period, the percent change
C129: is represented as "P". Similarly, if a company posts a loss in the latest
C130: period against a profit in the year-ago period, the percent change is
C131: represented as a "L".
B137: Hvis du formindsker et beløb med en bestemt procent og du
B138: herefter forøger det formindskede beløb med samme procent
B139: så kommer du ikke tilbage til der, hvor du startede.
B141: Prøv at indtaste forskellige tal i de gule celler.
B143: Startbeløb | E143: A | F143: 100
B144: Procentvis formindskelse | E144: P | F144: 0.3
B145: Formindsket beløb | E145: A' | F145: =F143*(1-F144) -> 70
B147: ="Reuktion = "&F143&" - "&F145&" = "&F143-F145 -> Reuktion = 100 - 70 = 30
B149: Formindsket beløb | E149: A' | F149: =F145 -> 70
B150: Procentvis forøgelse | E150: P | F150: =F144 -> 0.3
B151: Forøget beløb | E151: A'' | F151: =F149*(1+F150) -> 91
B153: ="Forøgelse = "&F151&" - "&F149&" = "&F151-F149 -> Forøgelse = 91 - 70 = 21
B156: Matematisk
B157: A" = A' *(1-P)*(1+P) | E157: A' | F157: =F145 -> 70
B158: = A' *(1 - P^2) | E158: P | F158: =F144 -> 0.3
E159: A" | F159: =F143*(1-F144^2) -> 91 | G159: =_xlfn.FORMULATEXT(F159) -> =F143*(1-F144^2)
B168: Vis antal hele procenter
L169: Indtast procent (helt tal) | S169: 37
B170: Billede | L170: =COLUMN(A:J) -> 1 | M170: 2 | N170: 3 | O170: 4 | P170: 5 | Q170: 6 | R170: 7 | S170: 8 | T170: 9 | U170: 10
K171: =ROW(1:10) -> 1 | L171: =L$170+$K171-1+$U$170*($K171-1)-(ROW(1:1)-1) -> 1 | M171: =M$170+$K171-1+$U$170*($K171-1)-(ROW(1:1)-1) -> 2 | N171: =N$170+$K171-1+$U$170*($K171-1)-(ROW(1:1)-1) -> 3 | O171: =O$170+$K171-1+$U$170*($K171-1)-(ROW(1:1)-1) -> 4 | P171: =P$170+$K171-1+$U$170*($K171-1)-(ROW(1:1)-1) -> 5 | Q171: =Q$170+$K171-1+$U$170*($K171-1)-(ROW(1:1)-1) -> 6 | R171: =R$170+$K171-1+$U$170*($K171-1)-(ROW(1:1)-1) -> 7 | S171: =S$170+$K171-1+$U$170*($K171-1)-(ROW(1:1)-1) -> 8 | T171: =T$170+$K171-1+$U$170*($K171-1)-(ROW(1:1)-1) -> 9 | U171: =U$170+$K171-1+$U$170*($K171-1)-(ROW(1:1)-1) -> 10
K172: 2 | L172: =L$170+$K172-1+$U$170*($K172-1)-(ROW(2:2)-1) -> 11 | M172: =M$170+$K172-1+$U$170*($K172-1)-(ROW(2:2)-1) -> 12 | N172: =N$170+$K172-1+$U$170*($K172-1)-(ROW(2:2)-1) -> 13 | O172: =O$170+$K172-1+$U$170*($K172-1)-(ROW(2:2)-1) -> 14 | P172: =P$170+$K172-1+$U$170*($K172-1)-(ROW(2:2)-1) -> 15 | Q172: =Q$170+$K172-1+$U$170*($K172-1)-(ROW(2:2)-1) -> 16 | R172: =R$170+$K172-1+$U$170*($K172-1)-(ROW(2:2)-1) -> 17 | S172: =S$170+$K172-1+$U$170*($K172-1)-(ROW(2:2)-1) -> 18 | T172: =T$170+$K172-1+$U$170*($K172-1)-(ROW(2:2)-1) -> 19 | U172: =U$170+$K172-1+$U$170*($K172-1)-(ROW(2:2)-1) -> 20
K173: 3 | L173: =L$170+$K173-1+$U$170*($K173-1)-(ROW(3:3)-1) -> 21 | M173: =M$170+$K173-1+$U$170*($K173-1)-(ROW(3:3)-1) -> 22 | N173: =N$170+$K173-1+$U$170*($K173-1)-(ROW(3:3)-1) -> 23 | O173: =O$170+$K173-1+$U$170*($K173-1)-(ROW(3:3)-1) -> 24 | P173: =P$170+$K173-1+$U$170*($K173-1)-(ROW(3:3)-1) -> 25 | Q173: =Q$170+$K173-1+$U$170*($K173-1)-(ROW(3:3)-1) -> 26 | R173: =R$170+$K173-1+$U$170*($K173-1)-(ROW(3:3)-1) -> 27 | S173: =S$170+$K173-1+$U$170*($K173-1)-(ROW(3:3)-1) -> 28 | T173: =T$170+$K173-1+$U$170*($K173-1)-(ROW(3:3)-1) -> 29 | U173: =U$170+$K173-1+$U$170*($K173-1)-(ROW(3:3)-1) -> 30
K174: 4 | L174: =L$170+$K174-1+$U$170*($K174-1)-(ROW(4:4)-1) -> 31 | M174: =M$170+$K174-1+$U$170*($K174-1)-(ROW(4:4)-1) -> 32 | N174: =N$170+$K174-1+$U$170*($K174-1)-(ROW(4:4)-1) -> 33 | O174: =O$170+$K174-1+$U$170*($K174-1)-(ROW(4:4)-1) -> 34 | P174: =P$170+$K174-1+$U$170*($K174-1)-(ROW(4:4)-1) -> 35 | Q174: =Q$170+$K174-1+$U$170*($K174-1)-(ROW(4:4)-1) -> 36 | R174: =R$170+$K174-1+$U$170*($K174-1)-(ROW(4:4)-1) -> 37 | S174: =S$170+$K174-1+$U$170*($K174-1)-(ROW(4:4)-1) -> 38 | T174: =T$170+$K174-1+$U$170*($K174-1)-(ROW(4:4)-1) -> 39 | U174: =U$170+$K174-1+$U$170*($K174-1)-(ROW(4:4)-1) -> 40
K175: 5 | L175: =L$170+$K175-1+$U$170*($K175-1)-(ROW(5:5)-1) -> 41 | M175: =M$170+$K175-1+$U$170*($K175-1)-(ROW(5:5)-1) -> 42 | N175: =N$170+$K175-1+$U$170*($K175-1)-(ROW(5:5)-1) -> 43 | O175: =O$170+$K175-1+$U$170*($K175-1)-(ROW(5:5)-1) -> 44 | P175: =P$170+$K175-1+$U$170*($K175-1)-(ROW(5:5)-1) -> 45 | Q175: =Q$170+$K175-1+$U$170*($K175-1)-(ROW(5:5)-1) -> 46 | R175: =R$170+$K175-1+$U$170*($K175-1)-(ROW(5:5)-1) -> 47 | S175: =S$170+$K175-1+$U$170*($K175-1)-(ROW(5:5)-1) -> 48 | T175: =T$170+$K175-1+$U$170*($K175-1)-(ROW(5:5)-1) -> 49 | U175: =U$170+$K175-1+$U$170*($K175-1)-(ROW(5:5)-1) -> 50
K176: 6 | L176: =L$170+$K176-1+$U$170*($K176-1)-(ROW(6:6)-1) -> 51 | M176: =M$170+$K176-1+$U$170*($K176-1)-(ROW(6:6)-1) -> 52 | N176: =N$170+$K176-1+$U$170*($K176-1)-(ROW(6:6)-1) -> 53 | O176: =O$170+$K176-1+$U$170*($K176-1)-(ROW(6:6)-1) -> 54 | P176: =P$170+$K176-1+$U$170*($K176-1)-(ROW(6:6)-1) -> 55 | Q176: =Q$170+$K176-1+$U$170*($K176-1)-(ROW(6:6)-1) -> 56 | R176: =R$170+$K176-1+$U$170*($K176-1)-(ROW(6:6)-1) -> 57 | S176: =S$170+$K176-1+$U$170*($K176-1)-(ROW(6:6)-1) -> 58 | T176: =T$170+$K176-1+$U$170*($K176-1)-(ROW(6:6)-1) -> 59 | U176: =U$170+$K176-1+$U$170*($K176-1)-(ROW(6:6)-1) -> 60
K177: 7 | L177: =L$170+$K177-1+$U$170*($K177-1)-(ROW(7:7)-1) -> 61 | M177: =M$170+$K177-1+$U$170*($K177-1)-(ROW(7:7)-1) -> 62 | N177: =N$170+$K177-1+$U$170*($K177-1)-(ROW(7:7)-1) -> 63 | O177: =O$170+$K177-1+$U$170*($K177-1)-(ROW(7:7)-1) -> 64 | P177: =P$170+$K177-1+$U$170*($K177-1)-(ROW(7:7)-1) -> 65 | Q177: =Q$170+$K177-1+$U$170*($K177-1)-(ROW(7:7)-1) -> 66 | R177: =R$170+$K177-1+$U$170*($K177-1)-(ROW(7:7)-1) -> 67 | S177: =S$170+$K177-1+$U$170*($K177-1)-(ROW(7:7)-1) -> 68 | T177: =T$170+$K177-1+$U$170*($K177-1)-(ROW(7:7)-1) -> 69 | U177: =U$170+$K177-1+$U$170*($K177-1)-(ROW(7:7)-1) -> 70
K178: 8 | L178: =L$170+$K178-1+$U$170*($K178-1)-(ROW(8:8)-1) -> 71 | M178: =M$170+$K178-1+$U$170*($K178-1)-(ROW(8:8)-1) -> 72 | N178: =N$170+$K178-1+$U$170*($K178-1)-(ROW(8:8)-1) -> 73 | O178: =O$170+$K178-1+$U$170*($K178-1)-(ROW(8:8)-1) -> 74 | P178: =P$170+$K178-1+$U$170*($K178-1)-(ROW(8:8)-1) -> 75 | Q178: =Q$170+$K178-1+$U$170*($K178-1)-(ROW(8:8)-1) -> 76 | R178: =R$170+$K178-1+$U$170*($K178-1)-(ROW(8:8)-1) -> 77 | S178: =S$170+$K178-1+$U$170*($K178-1)-(ROW(8:8)-1) -> 78 | T178: =T$170+$K178-1+$U$170*($K178-1)-(ROW(8:8)-1) -> 79 | U178: =U$170+$K178-1+$U$170*($K178-1)-(ROW(8:8)-1) -> 80
K179: 9 | L179: =L$170+$K179-1+$U$170*($K179-1)-(ROW(9:9)-1) -> 81 | M179: =M$170+$K179-1+$U$170*($K179-1)-(ROW(9:9)-1) -> 82 | N179: =N$170+$K179-1+$U$170*($K179-1)-(ROW(9:9)-1) -> 83 | O179: =O$170+$K179-1+$U$170*($K179-1)-(ROW(9:9)-1) -> 84 | P179: =P$170+$K179-1+$U$170*($K179-1)-(ROW(9:9)-1) -> 85 | Q179: =Q$170+$K179-1+$U$170*($K179-1)-(ROW(9:9)-1) -> 86 | R179: =R$170+$K179-1+$U$170*($K179-1)-(ROW(9:9)-1) -> 87 | S179: =S$170+$K179-1+$U$170*($K179-1)-(ROW(9:9)-1) -> 88 | T179: =T$170+$K179-1+$U$170*($K179-1)-(ROW(9:9)-1) -> 89 | U179: =U$170+$K179-1+$U$170*($K179-1)-(ROW(9:9)-1) -> 90
K180: 10 | L180: =L$170+$K180-1+$U$170*($K180-1)-(ROW(10:10)-1) -> 91 | M180: =M$170+$K180-1+$U$170*($K180-1)-(ROW(10:10)-1) -> 92 | N180: =N$170+$K180-1+$U$170*($K180-1)-(ROW(10:10)-1) -> 93 | O180: =O$170+$K180-1+$U$170*($K180-1)-(ROW(10:10)-1) -> 94 | P180: =P$170+$K180-1+$U$170*($K180-1)-(ROW(10:10)-1) -> 95 | Q180: =Q$170+$K180-1+$U$170*($K180-1)-(ROW(10:10)-1) -> 96 | R180: =R$170+$K180-1+$U$170*($K180-1)-(ROW(10:10)-1) -> 97 | S180: =S$170+$K180-1+$U$170*($K180-1)-(ROW(10:10)-1) -> 98 | T180: =T$170+$K180-1+$U$170*($K180-1)-(ROW(10:10)-1) -> 99 | U180: =U$170+$K180-1+$U$170*($K180-1)-(ROW(10:10)-1) -> 100
L182: Læg mærke til, at kvadratet indeholder
B183: Jeg har lavet ovenstående som et billede | L183: alle tal fra 1 til 100. Pånær et enkelt kva-
B184: (med link) fordi kolonnerne B:K har en | L184: drat er de gjort usynlige ved hjælp af
B185: større bredde end kolonne L:U. | L185: formatering.
L187: For at lave kvadratiske celler, gør følgende:
L189: 1. | M189: Peg med musen på kolonneoverskriften
M190: og sæt kolonnevidden så bred som du
M191: ønsker den.
L192: 2. | M192: Bemærk og husk pixel-tallet og kolonne-
M193: bredden.
L194: 3. | M194: Peg med musen på rækkeoverskriften
M195: og sæt rækkehøjden til samme antal
M196: pixels som du aflæste for kolonnen.
M197: Husk rækkehøjden.
L198: 4. | M198: Vælg nu det område, hvor du vil have
M199: kvadrater. Sæt kolonnebredden og
M200: rækkehøjden som aflæst under 2. og 3.
L203: Hvis du har adgang til SEQUENCE/SEKVENS,
L204: så kan du meget let udarbejde en tabel med
L205: fra 1 til 100, meget letere end den formel
L206: ="der findes i "&mycell(L171)&" nemlig:" -> der findes i L171 nemlig:
L207: =_xlfn.FORMULATEXT(L171) -> =L$170+$K171-1+$U$170*($K171-1)-(ROW(1:1)-1)
L209: Med SEKVENS-funktionen kan du bruge:
L210: =SEQUENE(10;10) eller dansk =SEKVENS(10;10)
L212: Indtast procent (helt tal) | S212: 55
L214: =IF(MOD(ROW(A1),2)=1,_xlfn.SEQUENCE(,10,100-(ROW(A1)-1)*10-9,1),_xlfn.SEQUENCE(,10,100-(ROW(A1)-1)*10,-1)) -> 91 | M214: 92 | N214: 93 | O214: 94 | P214: 95 | Q214: 96 | R214: 97 | S214: 98 | T214: 99 | U214: 100
L215: =IF(MOD(ROW(A2),2)=1,_xlfn.SEQUENCE(,10,100-(ROW(A2)-1)*10-9,1),_xlfn.SEQUENCE(,10,100-(ROW(A2)-1)*10,-1)) -> 90 | M215: 89 | N215: 88 | O215: 87 | P215: 86 | Q215: 85 | R215: 84 | S215: 83 | T215: 82 | U215: 81
L216: =IF(MOD(ROW(A3),2)=1,_xlfn.SEQUENCE(,10,100-(ROW(A3)-1)*10-9,1),_xlfn.SEQUENCE(,10,100-(ROW(A3)-1)*10,-1)) -> 71 | M216: 72 | N216: 73 | O216: 74 | P216: 75 | Q216: 76 | R216: 77 | S216: 78 | T216: 79 | U216: 80
L217: =IF(MOD(ROW(A4),2)=1,_xlfn.SEQUENCE(,10,100-(ROW(A4)-1)*10-9,1),_xlfn.SEQUENCE(,10,100-(ROW(A4)-1)*10,-1)) -> 70 | M217: 69 | N217: 68 | O217: 67 | P217: 66 | Q217: 65 | R217: 64 | S217: 63 | T217: 62 | U217: 61
L218: =IF(MOD(ROW(A5),2)=1,_xlfn.SEQUENCE(,10,100-(ROW(A5)-1)*10-9,1),_xlfn.SEQUENCE(,10,100-(ROW(A5)-1)*10,-1)) -> 51 | M218: 52 | N218: 53 | O218: 54 | P218: 55 | Q218: 56 | R218: 57 | S218: 58 | T218: 59 | U218: 60
L219: =IF(MOD(ROW(A6),2)=1,_xlfn.SEQUENCE(,10,100-(ROW(A6)-1)*10-9,1),_xlfn.SEQUENCE(,10,100-(ROW(A6)-1)*10,-1)) -> 50 | M219: 49 | N219: 48 | O219: 47 | P219: 46 | Q219: 45 | R219: 44 | S219: 43 | T219: 42 | U219: 41
L220: =IF(MOD(ROW(A7),2)=1,_xlfn.SEQUENCE(,10,100-(ROW(A7)-1)*10-9,1),_xlfn.SEQUENCE(,10,100-(ROW(A7)-1)*10,-1)) -> 31 | M220: 32 | N220: 33 | O220: 34 | P220: 35 | Q220: 36 | R220: 37 | S220: 38 | T220: 39 | U220: 40
L221: =IF(MOD(ROW(A8),2)=1,_xlfn.SEQUENCE(,10,100-(ROW(A8)-1)*10-9,1),_xlfn.SEQUENCE(,10,100-(ROW(A8)-1)*10,-1)) -> 30 | M221: 29 | N221: 28 | O221: 27 | P221: 26 | Q221: 25 | R221: 24 | S221: 23 | T221: 22 | U221: 21
L222: =IF(MOD(ROW(A9),2)=1,_xlfn.SEQUENCE(,10,100-(ROW(A9)-1)*10-9,1),_xlfn.SEQUENCE(,10,100-(ROW(A9)-1)*10,-1)) -> 11 | M222: 12 | N222: 13 | O222: 14 | P222: 15 | Q222: 16 | R222: 17 | S222: 18 | T222: 19 | U222: 20
L223: =IF(MOD(ROW(A10),2)=1,_xlfn.SEQUENCE(,10,100-(ROW(A10)-1)*10-9,1),_xlfn.SEQUENCE(,10,100-(ROW(A10)-1)*10,-1)) -> 10 | M223: 9 | N223: 8 | O223: 7 | P223: 6 | Q223: 5 | R223: 4 | S223: 3 | T223: 2 | U223: 1
L225: Som nævnt - det her er mest for sjov.
L227: Ovennævnte viser hele procenter ud-
L228: fyldt fra nederste højre hjørne mod
L229: venstre og derefter opad én celle
L230: længst til højre.
L231: Hvis du skulle ønske at lave noget tilsva-
L232: rende, hvor det er muligt at vise for ek-
L233: sempel 25,5 %, så kan det gøres med et
L234: diagram som herunder.
L237: Indtast procenttal | R237: 0.555
G241: 0 | H241: =R237*100 -> 55.5
G242: 10 | H242: =MAX(IF($H$241>G242,10,$H$241-G241),0) -> 10 | I242: 10
G243: 20 | H243: 10 | I243: 10
G244: 30 | H244: 10 | I244: 10
G245: 40 | H245: 10 | I245: 10
G246: 50 | H246: 10 | I246: 10
G247: 60 | H247: 5.5 | I247: 10
G248: 70 | H248: 0 | I248: 10
G249: 80 | H249: 0 | I249: 10
G250: 90 | H250: 0 | I250: 10
G251: 100 | H251: 0 | I251: 10
L253: Diagrammet herover viser procenttal fra
L254: nederste højre hjørne og derefter opad
L255: én celle længst til venstre.

Sheet Lommeregner
B3: Lommeregner
J5: +
C6: 2 | D6: =IF(J19=1,"+",IF(J19=2,"-",IF(J19=3,"*",IF(J19=4,"/",IF(J19=5,"^",IF(J19=6,"=",IF(J19=7,">",IF(J19=8,">=",IF(J19=9,"<",IF(J19=10,"<=",IF(J19=11,"<>",""))))))))))) -> / | E6: 2 | F6: =mEvaluate -> 1 | J6: -
J7: *
J8: /
B9: VBA Function Eval (jvf. nedenfor) | F9: =eval(Ref) -> 1 | J9: ^
J10: =
B11: Det her har ingen praktisk relevans - det er kun for sjov. | J11: >
B12: ="Formlen i cell "&mycell(F6)&" =mEvaluate, der er oprettet som en navngiven" -> Formlen i cell F6 =mEvaluate, der er oprettet som en navngiven | J12: >=
B13: formel under Name Manager/Navnestyring gør brug af en af de | J13: <
B14: gamle Excel 4.0 makroer (XLM makroer introduceret i 1992). | J14: <=
J15: <>
B16: I valgboksen (i celle D6) kan du vælge mellem forskellige
B17: operatorer (se J5:J15).
I19: Format Control, cell link | J19: 4
B22: Hvis du gerne vil undgå at bruge en af de gamle XLM makroer kan du i stedet for bruge følgende
B23: kode.
B25: Function Eval(Ref As String)
B26: Application.Volatile
B27: Eval = Evaluate(Ref)
B28: End Function
B34: Lommeregner
F35: Resultat
B36: 5 | C36: + | D36: 3 | F36: =CHOOSE(MATCH("~"&C36,{"*","+","-","/"},0),B36*D36,B36+D36,B36-D36,B36/D36) -> 8
F37: =CHOOSE(MIN(3,CODE(C36)-41)+MAX(0,CODE(C36)-46),B36*D36,B36+D36,B36-D36,B36/D36) -> 8 | H37: * | I37: =CODE(H37) -> 42 | J37: =MIN(3,CODE(H37)-41)+MAX(0,CODE(H37)-46) -> 1
H38: + | I38: =CODE(H38) -> 43 | J38: =MIN(3,CODE(H38)-41)+MAX(0,CODE(H38)-46) -> 2
H39: - | I39: =CODE(H39) -> 45 | J39: =MIN(3,CODE(H39)-41)+MAX(0,CODE(H39)-46) -> 3
H40: / | I40: =CODE(H40) -> 47 | J40: =MIN(3,CODE(H40)-41)+MAX(0,CODE(H40)-46) -> 4
B44: 5 | C44: Division | D44: 4 | F44: =CHOOSE(MATCH("~"&INDEX({"+";"-";"*";"/"},MATCH(C44,{"Plus";"Minus";"Gange";"Division"},0)),{"*","+","-","/"},0),B44*D44,B44+D44,B44-D44,B44/D44) -> 1.25

Sheet ABC_analyse
B2: ABC-analyse af kunder | F2: Hvis du ikke lige er helt med på, hvad ABC-analyse er, så kan du søge på nettet
F3: og finde en masse om emnet.
B5: Klassinddeling - Omsætning | F5: ABC-analyse efter omsætning
B7: A | C7: Over | D7: 150000 | G7: Antal kunder | H7: % | I7: Omsætning | J7: %
B8: B | C8: Til | D8: =D7-0.01 -> 149999.99 | F8: A | G8: =COUNTIF($D$26:$D$104,F8) -> 11 | H8: =G8/$G$11 -> 0.1392405063 | I8: =SUMIF($D$26:$D$104,F8,$C$26:$C$104) -> 4931425.44 | J8: =I8/$I$11 -> 0.7211015198
C9: Fra | D9: 10000 | F9: B | G9: =COUNTIF($D$26:$D$104,F9) -> 38 | H9: =G9/$G$11 -> 0.4810126582 | I9: =SUMIF($D$26:$D$104,F9,$C$26:$C$104) -> 1756366.69 | J9: =I9/$I$11 -> 0.2568260851
B10: C | C10: Til | D10: =D9-0.01 -> 9999.99 | F10: C | G10: =COUNTIF($D$26:$D$104,F10) -> 30 | H10: =G10/$G$11 -> 0.3797468354 | I10: =SUMIF($D$26:$D$104,F10,$C$26:$C$104) -> 150947.36 | J10: =I10/$I$11 -> 0.0220723951
F11: I alt | G11: =SUM(G8:G10) -> 79 | H11: =G11/$G$11 -> 1 | I11: =SUM(I8:I10) -> 6838739.49 | J11: =I11/$I$11 -> 1
B12: Klasseinddeling - Dækningsbidrag
F13: ABC-analyse efter dækningsbidrag
B14: A | C14: Over | D14: 75000
B15: B | C15: Til | D15: =D14-0.01 -> 74999.99 | G15: Antal kunder | H15: % | I15: DB | J15: %
C16: Fra | D16: 5000 | F16: A | G16: =COUNTIF($F$26:$F$104,F16) -> 10 | H16: =G16/$G$19 -> 0.1265822785 | I16: =SUMIF($F$26:$F$104,F16,$E$26:$E$104) -> 1672707.44 | J16: =I16/$I$19 -> 0.7233148931
B17: C | C17: Til | D17: =D16-0.01 -> 4999.99 | F17: B | G17: =COUNTIF($F$26:$F$104,F17) -> 29 | H17: =G17/$G$19 -> 0.3670886076 | I17: =SUMIF($F$26:$F$104,F17,$E$26:$E$104) -> 547229.89 | J17: =I17/$I$19 -> 0.236634046
F18: C | G18: =COUNTIF($F$26:$F$104,F18) -> 40 | H18: =G18/$G$19 -> 0.5063291139 | I18: =SUMIF($F$26:$F$104,F18,$E$26:$E$104) -> 92620.39 | J18: =I18/$I$19 -> 0.04005106087
F19: I alt | G19: =SUM(G16:G18) -> 79 | H19: =G19/$G$11 -> 1 | I19: =SUM(I16:I18) -> 2312557.72 | J19: =I19/$I$19 -> 1
H22: Opgaven er som følger:
H23: Indsæt et "A", "B" eller "C" i kolonnerne "Omsætningskategori"
B24: Kundenavn | C24: Omsætning | D24: Omsætnings- | E24: Dæknings- | F24: DB | G24: Afvigelse | H24: og "DB-kategori baseret på de klasseinddelingsprincipper der er
D25: kategori | E25: bidrag | F25: kategori | H25: anført i opstllingen øverst til venstre. Kolonnen "Afvigelse" skal
C26: 126545 | D26: =IF(C26>=$D$7,"A",IF(C26>=$D$9,"B",IF(C26>=0,"C",""))) -> B | E26: 24401.75 | F26: =IF(E26>=$D$14,"A",IF(E26>=$D$16,"B",IF(E26>=0,"C",""))) -> B | G26: =IF(D26<>F26,"Ja","") ->  | H26: indeholde et "JA" hvis der for en given kunde er forskel mellem
C27: 59554.14 | D27: =IF(C27>=$D$7,"A",IF(C27>=$D$9,"B",IF(C27>=0,"C",""))) -> B | E27: 20896.19 | F27: =IF(E27>=$D$14,"A",IF(E27>=$D$16,"B",IF(E27>=0,"C",""))) -> B | G27: =IF(D27<>F27,"Ja","") ->  | H27: "Omsætningskategori" og "DB-kategori". Brug betinget forma-
C28: 13068 | D28: B | E28: 4585.26 | F28: C | G28: Ja | H28: tering til at give "A", "B" og "C" forskellig farve.
C29: 87120 | D29: B | E29: 1568.42 | F29: C | G29: Ja
C30: 164209.22 | D30: A | E30: 27617.27 | F30: B | G30: Ja | H30: Herefter skal skemaet oven for (i kolonne G:K) færdiggøres. Alt
C31: 11386.58 | D31: B | E31: 3995.29 | F31: C | G31: Ja | H31: skal ske ved hjælp af formler/funktioner.
C32: 5955.74 | D32: C | E32: 2089.73 | F32: C
C33: 85971.11 | D33: B | E33: 30165.3 | F33: B | H33: Endelig skal du lave et søjlediagram der viser omsætning og DB
C34: 1346 | D34: C | E34: 472.28 | F34: C | H34: i procent for henholdsvis A-, B- og C-kunder.
C35: 57378.32 | D35: B | E35: 20132.74 | F35: B
C36: 4975.64 | D36: C | E36: 1745.84 | F36: C
C37: 848902.73 | D37: A | E37: 297860.61 | F37: A
C38: 8600.92 | D38: C | E38: 3017.87 | F38: C
C39: 110219.87 | D39: B | E39: 30673.64 | F39: B
C40: 332278.95 | D40: A | E40: 116589.1 | F40: A
C41: 9786.84 | D41: C | E41: 3433.98 | F41: C
C42: 32395.57 | D42: B | E42: 11366.87 | F42: B
C43: 102429.16 | D43: B | E43: 35940.06 | F43: B
C44: 415426.28 | D44: A | E44: 145763.61 | F44: A
C45: 293799.13 | D45: A | E45: 103087.41 | F45: A
C46: 11883.51 | D46: B | E46: 4169.65 | F46: C | G46: Ja
C47: 134659.21 | D47: B | E47: 47248.84 | F47: B
C48: 531320.92 | D48: A | E48: 186428.39 | F48: A
C49: 22869 | D49: B | E49: 8024.21 | F49: B
C50: 7599.04 | D50: C | E50: 2666.33 | F50: C
C51: 27225 | D51: B | E51: 9552.63 | F51: B
C52: 544.5 | D52: C | E52: 191.05 | F52: C
C53: 1633.5 | D53: C | E53: 573.16 | F53: C
C54: 11979 | D54: B | E54: 4203.16 | F54: C | G54: Ja
C55: 4900.5 | D55: C | E55: 1719.47 | F55: C
C56: 354795.11 | D56: A | E56: 124489.51 | F56: A
C57: 354736.31 | D57: A | E57: 124468.88 | F57: A
C58: 7599.04 | D58: C | E58: 2666.33 | F58: C
C59: 14796.24 | D59: B | E59: 5191.66 | F59: B
C60: 15872.18 | D60: B | E60: 5569.18 | F60: B
C61: 7599.04 | D61: C | E61: 2666.33 | F61: C
C62: 27626.84 | D62: B | E62: 9693.63 | F62: B
C63: 82652.92 | D63: B | E63: 29001.03 | F63: B
C64: 87636.19 | D64: B | E64: 30749.54 | F64: B
C65: 7599.04 | D65: C | E65: 2666.33 | F65: C
C66: 303819.02 | D66: A | E66: 106603.17 | F66: A
C67: 1065817.37 | D67: A | E67: 373971.01 | F67: A
C68: 10778.92 | D68: B | E68: 3782.08 | F68: C | G68: Ja
C69: 13465.49 | D69: B | E69: 4724.73 | F69: C | G69: Ja
C70: 7599.04 | D70: C | E70: 2666.33 | F70: C
C71: 36531.59 | D71: B | E71: 12818.1 | F71: B
C72: 266320.4 | D72: A | E72: 93445.75 | F72: A
C73: 811.31 | D73: C | E73: 284.67 | F73: C
C74: 7599.04 | D74: C | E74: 2666.33 | F74: C
C75: 8599.83 | D75: C | E75: 3017.49 | F75: C
C76: 625.09 | D76: C | E76: 219.33 | F76: C
C77: 2574.4 | D77: C | E77: 903.3 | F77: C
C78: 8597.66 | D78: C | E78: 3016.72 | F78: C
C79: 4975.64 | D79: C | E79: 1745.84 | F79: C
C80: 86007.04 | D80: B | E80: 30177.91 | F80: B
C81: 52485.44 | D81: B | E81: 18415.95 | F81: B
C82: 74.05 | D82: C | E82: 25.98 | F82: C
C83: 9618.05 | D83: C | E83: 3374.75 | F83: C
C84: 11790.6 | D84: B | E84: 4137.05 | F84: C | G84: Ja
C85: 89658.46 | D85: B | E85: 31459.11 | F85: B
C86: 5458.07 | D86: C | E86: 1915.11 | F86: C
C87: 8398.37 | D87: C | E87: 2946.8 | F87: C
C88: 967.03 | D88: C | E88: 339.31 | F88: C
C89: 10516.47 | D89: B | E89: 3689.99 | F89: C | G89: Ja
C90: 39.2 | D90: C | E90: 13.76 | F90: C
C91: 1346 | D91: =IF(C91>=$D$7,"A",IF(C91>=$D$9,"B",IF(C91>=0,"C",""))) -> C | E91: 472.28 | F91: =IF(E91>=$D$14,"A",IF(E91>=$D$16,"B",IF(E91>=0,"C",""))) -> C | G91: =IF(D91<>F91,"Ja","") -> 
C92: 5458.07 | D92: C | E92: 1915.11 | F92: C
C93: 9570.13 | D93: C | E93: 3357.94 | F93: C
C94: 13682.2 | D94: B | E94: 4800.77 | F94: C | G94: Ja
C95: 17794.26 | D95: B | E95: 6243.6 | F95: B
C96: 21906.32 | D96: B | E96: 7686.43 | F96: B
C97: 26018.39 | D97: B | E97: 9129.26 | F97: B
C98: 30130.45 | D98: B | E98: 10572.09 | F98: B
C99: 34242.52 | D99: B | E99: 12014.92 | F99: B
C100: 38354.58 | D100: B | E100: 13457.75 | F100: B
C101: 42466.64 | D101: B | E101: 14900.58 | F101: B
C102: 46578.71 | D102: B | E102: 16343.41 | F102: B
C103: 50690.77 | D103: B | E103: 17786.24 | F103: B
C104: 496.58 | D104: C | E104: 174.24 | F104: C
